{"text_format":"2","workbook":"xlsx","n_sheets":13,"sheets":["PLANILHA ORÇAMENTÁRIA","CRONO FISICO-FINANCEIRO","MEMÓRIA DE CÁLCULOS","COMPOSIÇÕES SICRO","COMPOSIÇÕES SINAPI","CUSTOS UNIT. SICRO e SINAPI","Mob e Desmob OBRA asfalto","Mob e Desmob OBRA cascalho","Mob e Desmob JAZ. asfalto","Mob e Desmob JAZ. cascalho","CROQUI JAZIDA","DET. ENCARGOS","BDI"],"not_rendered":{"charts":0,"images":3,"macros":0,"external_links":11,"defined_names":1530,"comments":1,"pivot_tables":0},"unopened":[],"bounds":{"document_bytes":16777216,"sheet_cells":100000,"run_cost":"one","rows_first":2000,"rows_last":500,"rows_between":2000,"halvings":0,"cell_chars":16384,"cell_head_chars":4096},"cells_cut":0,"cells_raw":0,"read":"whole","date_system":"1900"}

{"sheet":"PLANILHA ORÇAMENTÁRIA","index":0,"n_rows":36,"n_cols":11,"rows_kept":36,"cut":false,"hidden":false,"merged":[[0,3,0,10],[1,3,1,10],[2,3,2,10],[8,1,8,2],[8,3,8,10],[4,1,6,10],[10,1,10,5],[13,2,13,3],[14,2,14,3],[21,1,21,6],[23,2,23,3],[24,2,24,3],[31,1,31,6],[33,1,33,6],[34,1,34,6],[13,0,33,0]]}
[null,null,null,"Ministério da Integração e do Desenvolvimento Regional - MIDR"]
[null,null,null,"Companhia de Desenvolvimento dos Vales do São Francisco e Parnaíba - CODEVASF"]
[null,null,null,"2ª Superintendência Regional - Gerência Regional de Infraestrutura (2ª/GRD)"]
[]
[null,"ANEXO 4 - PLANILHA ORÇAMENTÁRIA PARA EXECUÇÃO DE OBRAS E SERVIÇOS DE ENGENHARIA (SEM DESONERAÇÃO)"]
[]
[]
[]
[null,"Objeto:",null,"CONTRATAÇÃO DE OBRAS E SERVIÇOS DE ENGENHARIA PARA REGULARIZAÇÃO DE SUBLEITO E EXECUÇÃO DE REVESTIMENTO PRIMÁRIO NA ESTRADA DA IPUEIRA, MUNICÍPIO DE SERRA DO RAMALHO, NA ÁREA DE ABRANGÊNCIA DA 2ª SUPERINTENDÊNCIA REGIONAL DA CODEVASF, NO ESTADO DA BAHIA."]
[]
[null,"Referências de Custos: SINAPI BAHIA (JULHO/2025); e SICRO BAHIA (ABRIL/2025).",{"$nulls":6},"B.D.I. =",{"$f":"ROUNDUP(BDI!D36,4)","v":0.215}]
[]
[]
["Adequação e revestimento primário de estradas vicinais.","ITEM","DISCRIMINAÇÃO DOS SERVIÇOS ",null,"UNIDADE","QUANTIDADE","CUSTO UNITÁRIO (SEM BDI)","CUSTO TOTAL (SEM BDI)","PREÇO UNITÁRIO (COM BDI)","PREÇO TOTAL (COM BDI)","% do Total"]
[null,1,"SERVIÇOS PRELIMINARES E ADMINISTRAÇÃO LOCAL"]
[null,"1.1",{"$f":"'COMPOSIÇÕES SINAPI'!A11","v":"CPU-01"},{"$f":"'COMPOSIÇÕES SINAPI'!D11","v":"ADMINISTRAÇÃO LOCAL"},{"$f":"'COMPOSIÇÕES SINAPI'!E11","v":"%"},{"$f":"'MEMÓRIA DE CÁLCULOS'!E13","v":1},{"$f":"'COMPOSIÇÕES SINAPI'!H14","v":14114.88},{"$f":"ROUNDUP(F16*G16,4)","v":14114.88},{"$f":"TRUNC((1+$J$11)*G16,2)","v":17149.57},{"$f":"TRUNC(F16*I16,2)","v":17149.57},{"$f":"J16/$J$34","v":3.4933514457113665E-2}]
[null,"1.2",{"$f":"'COMPOSIÇÕES SINAPI'!A16","v":"CPU-02"},{"$f":"'COMPOSIÇÕES SINAPI'!D16","v":"PLACA DE OBRA EM CHAPA DE AÇO GALVANIZADO (1,80 M * 3,60 M)"},{"$f":"'COMPOSIÇÕES SINAPI'!E16","v":"m²"},{"$f":"'MEMÓRIA DE CÁLCULOS'!E14","v":6.48},{"$f":"'COMPOSIÇÕES SINAPI'!H27","v":511.34},{"$f":"ROUNDUP(F17*G17,4)","v":3313.4832000000001},621.27,4025.82,8.2005578665667617E-3]
[null,"1.3",{"$f":"'COMPOSIÇÕES SICRO'!A151","v":"SICRO 5914639"},"TRANSPORTE DE EQUIPAMENTOS EM RODOVIA COM REVESTIMENTO PRIMÁRIO - MOBILIZAÇÃO",{"$f":"'COMPOSIÇÕES SICRO'!I150","v":"tkm"},{"$f":"'MEMÓRIA DE CÁLCULOS'!E15","v":823.74},{"$f":"'COMPOSIÇÕES SICRO'!I172","v":0.69},568.38059999999996,0.83,683.7,1.3926905359334732E-3]
[null,"1.4",{"$f":"'COMPOSIÇÕES SICRO'!A177","v":"SICRO 5914640"},"TRANSPORTE DE EQUIPAMENTOS EM RODOVIA PAVIMENTADA - MOBILIZAÇÃO",{"$f":"'COMPOSIÇÕES SICRO'!I176","v":"tkm"},{"$f":"'MEMÓRIA DE CÁLCULOS'!E16","v":1098.32},{"$f":"'COMPOSIÇÕES SICRO'!I198","v":0.56999999999999995},626.04240000000004,0.69,757.84,1.5437130258180831E-3]
[null,"1.5",{"$f":"'COMPOSIÇÕES SICRO'!A151","v":"SICRO 5914639"},"TRANSPORTE DE EQUIPAMENTOS EM RODOVIA COM REVESTIMENTO PRIMÁRIO - DESMOBILIZAÇÃO",{"$f":"'COMPOSIÇÕES SICRO'!I150","v":"tkm"},{"$f":"'MEMÓRIA DE CÁLCULOS'!E17","v":823.74},{"$f":"'COMPOSIÇÕES SICRO'!I172","v":0.69},568.38059999999996,0.83,683.7,1.3926905359334732E-3]
[null,"1.6",{"$f":"'COMPOSIÇÕES SICRO'!A177","v":"SICRO 5914640"},"TRANSPORTE DE EQUIPAMENTOS EM RODOVIA PAVIMENTADA - DESMOBILIZAÇÃO",{"$f":"'COMPOSIÇÕES SICRO'!I176","v":"tkm"},{"$f":"'MEMÓRIA DE CÁLCULOS'!E18","v":1098.32},{"$f":"'COMPOSIÇÕES SICRO'!I198","v":0.56999999999999995},626.04240000000004,0.69,757.84,1.5437130258180831E-3]
[null,"TOTAL DO ITEM 1",{"$nulls":5},{"$f":"SUM(H16:H21)","v":19817.209199999998},null,{"$f":"SUM(J16:J21)","v":24058.47},4.9006879447183543E-2]
[]
[null,"ITEM","DISCRIMINAÇÃO DOS SERVIÇOS ",null,"UNIDADE","QUANTIDADE","CUSTO UNITÁRIO (SEM BDI)","CUSTO TOTAL (SEM BDI)","PREÇO UNITÁRIO (COM BDI)","PREÇO TOTAL (COM BDI)","% do Total"]
[null,2,"SERVIÇOS TÉCNICOS PARA LIMPEZA, REGULARIZAÇÃODE SUBLEITO  E REVESTIMENTO PRIMÁRIO DE ESTRADAS VICINAIS"]
[null,"2.1",{"$f":"'COMPOSIÇÕES SICRO'!A72","v":"ADAPTADO DE SICRO 5502985"},"LIMPEZA MECANIZADA DA CAMADA VEGETAL COM RETROESCAVADEIRA",{"$f":"'COMPOSIÇÕES SICRO'!I71","v":"m²"},{"$f":"'MEMÓRIA DE CÁLCULOS'!E20","v":23285.57},{"$f":"'COMPOSIÇÕES SICRO'!I94","v":0.45},{"$f":"ROUNDUP(F26*G26,4)","v":10478.5065},{"$f":"TRUNC((1+$J$11)*G26,2)","v":0.54},{"$f":"TRUNC(F26*I26,2)","v":12574.2},{"$f":"J26/$J$34","v":2.5613528355908556E-2}]
[null,"2.2",{"$f":"'COMPOSIÇÕES SICRO'!A203","v":"SICRO 4011209"},"REGULARIZAÇÃO DE SUBLEITO",{"$f":"'COMPOSIÇÕES SICRO'!I202","v":"m²"},{"$f":"'MEMÓRIA DE CÁLCULOS'!E21","v":32820},{"$f":"'COMPOSIÇÕES SICRO'!I230","v":1.58},51855.6,1.91,62686.2,0.1276912058997117]
[null,"2.3",{"$f":"'COMPOSIÇÕES SICRO'!A10","v":"SICRO 4015612"},"EXECUÇÃO DE REVESTIMENTO PRIMÁRIO COM MATERIAL DE JAZIDA",{"$f":"'COMPOSIÇÕES SICRO'!I9","v":"m³"},{"$f":"'MEMÓRIA DE CÁLCULOS'!E22","v":4102.5},{"$f":"'COMPOSIÇÕES SICRO'!I40","v":13.75},56409.375,16.7,68511.75,0.13955779702389956]
[null,"2.4",{"$f":"'COMPOSIÇÕES SICRO'!A45","v":"SICRO 4016096"},"ESCAVAÇÃO E CARGA DE MATERIAL DE JAZIDA COM ESCAVADEIRA HIDRÁULICA DE 1,56 M³",{"$f":"'COMPOSIÇÕES SICRO'!I44","v":"m³"},{"$f":"'MEMÓRIA DE CÁLCULOS'!E23","v":4513.84},{"$f":"'COMPOSIÇÕES SICRO'!I67","v":1.48},6680.4831999999997,1.79,8079.77,1.6458416281291792E-2]
[null,"2.5",{"$f":"'COMPOSIÇÕES SICRO'!A99","v":"SICRO 5901639"},"TRANSPORTE COM CAMINHÃO BASCULANTE COM CAÇAMBA ESTANQUE COM CAPACIDADE DE 14 M³ - RODOVIA EM LEITO NATURAL",{"$f":"'COMPOSIÇÕES SICRO'!I98","v":"tkm"},{"$f":"'MEMÓRIA DE CÁLCULOS'!E24","v":160805.69},{"$f":"'COMPOSIÇÕES SICRO'!I120","v":0.91},146333.17790000001,1.1000000000000001,176886.25,0.36031564474442346]
[null,"2.6",{"$f":"'COMPOSIÇÕES SICRO'!A125","v":"SICRO 5901640"},"TRANSPORTE COM CAMINHÃO BASCULANTE COM CAÇAMBA ESTANQUE COM CAPACIDADE DE 14 M³ - RODOVIA PAVIMENTADA",{"$f":"'COMPOSIÇÕES SICRO'!I124","v":"tkm"},{"$f":"'MEMÓRIA DE CÁLCULOS'!E25","v":172654.53},{"$f":"'COMPOSIÇÕES SICRO'!I146","v":0.66},null,0.8,138123.62,0.28135652824758139]
[null,"TOTAL DO ITEM 2",{"$nulls":5},{"$f":"SUM(H26:H30)","v":271757.14260000002},null,{"$f":"SUM(J26:J31)","v":466861.79},0.95099312055281637]
[]
[null,"Total Geral",{"$nulls":5},{"$f":"SUM(H22,H32)","v":291574.3518},null,{"$f":"TRUNC(SUM(J22,J32),2)","v":490920.26},{"$f":"SUM(K22,K32)","v":0.99999999999999989}]
[null,"Preço Médio por km:",{"$nulls":5},{"$f":"H34/5","v":58314.870360000001},null,{"$f":"TRUNC(J34/5.47,2)","v":89747.76}]
[{"$nulls":6},"Preço Médio por m²:",{"$f":"H35/6000","v":9.7191450600000007},null,{"$f":"J34/27350","v":17.949552468007312}]

{"sheet":"CRONO FISICO-FINANCEIRO","index":1,"n_rows":36,"n_cols":9,"rows_kept":36,"cut":false,"hidden":false,"merged":[[11,2,12,2],[13,2,14,2],[15,2,16,2],[19,3,20,3],[5,2,6,2],[15,3,16,3],[0,1,0,7],[1,1,1,8],[2,1,2,8],[4,2,4,3],[35,3,35,4],[5,1,6,1],[7,1,8,1],[9,1,10,1],[11,1,12,1],[13,1,14,1],[15,1,16,1],[19,1,20,1],[21,1,22,1],[23,1,24,1],[25,1,26,1],[27,1,28,1],[25,3,26,3],[27,3,28,3],[29,3,30,3],[29,1,30,1],[21,3,22,3],[23,3,24,3],[31,1,31,3],[5,3,6,3],[7,3,8,3],[9,3,10,3],[11,3,12,3],[13,3,14,3],[19,2,20,2],[21,2,22,2],[23,2,24,2],[25,2,26,2],[7,2,8,2],[9,2,10,2],[27,2,28,2],[29,2,30,2],[17,1,17,3],[18,2,18,3]]}
[null,"CONTRATAÇÃO DE OBRAS E SERVIÇOS DE ENGENHARIA PARA REGULARIZAÇÃO DE SUBLEITO E EXECUÇÃO DE REVESTIMENTO PRIMÁRIO NA ESTRADA DA IPUEIRA, MUNICÍPIO DE SERRA DO RAMALHO, NA ÁREA DE ABRANGÊNCIA DA 2ª SUPERINTENDÊNCIA REGIONAL DA CODEVASF, NO ESTADO DA BAHIA."]
[]
[null,"ANEXO 4 - CRONOGRAMA DE EXECUÇÃO FÍSICO-FINANCEIRA"]
[]
[null,{"$f":"'PLANILHA ORÇAMENTÁRIA'!B15","v":1},"SERVIÇOS PRELIMINARES E ADMINISTRAÇÃO LOCAL",null,"VALOR TOTAL","MÊS 1","MÊS 2","MÊS 3","TOTAL"]
[null,{"$f":"'PLANILHA ORÇAMENTÁRIA'!B16","v":"1.1"},{"$f":"'PLANILHA ORÇAMENTÁRIA'!C16","v":"CPU-01"},{"$f":"'PLANILHA ORÇAMENTÁRIA'!D16","v":"ADMINISTRAÇÃO LOCAL"},{"$f":"'PLANILHA ORÇAMENTÁRIA'!J16","v":17149.57},{"$f":"TRUNC($E$6*F7,2)","v":1560.62},{"$f":"TRUNC($E$6*G7,2)","v":8475.31},{"$f":"TRUNC($E$6*H7,2)","v":7113.64},{"$f":"SUM(F6:H6)","v":17149.57}]
[{"$nulls":4},"%",9.1000999999999999E-2,0.49419999999999997,0.4148,1.0000009999999999]
[null,{"$f":"'PLANILHA ORÇAMENTÁRIA'!B17","v":"1.2"},{"$f":"'PLANILHA ORÇAMENTÁRIA'!C17","v":"CPU-02"},{"$f":"'PLANILHA ORÇAMENTÁRIA'!D17","v":"PLACA DE OBRA EM CHAPA DE AÇO GALVANIZADO (1,80 M * 3,60 M)"},{"$f":"'PLANILHA ORÇAMENTÁRIA'!J17","v":4025.82},{"$f":"TRUNC($E$8*F9,2)","v":4025.82},{"$f":"TRUNC($E$8*G9,2)","v":0},{"$f":"TRUNC($E$8*H9,2)","v":0},4025.82]
[{"$nulls":4},"%",1,0,0,1]
[null,{"$f":"'PLANILHA ORÇAMENTÁRIA'!B18","v":"1.3"},{"$f":"'PLANILHA ORÇAMENTÁRIA'!C18","v":"SICRO 5914639"},{"$f":"'PLANILHA ORÇAMENTÁRIA'!D18","v":"TRANSPORTE DE EQUIPAMENTOS EM RODOVIA COM REVESTIMENTO PRIMÁRIO - MOBILIZAÇÃO"},{"$f":"'PLANILHA ORÇAMENTÁRIA'!J18","v":683.7},{"$f":"TRUNC($E$10*F11,2)","v":683.7},{"$f":"TRUNC($E$10*G11,2)","v":0},{"$f":"TRUNC($E$10*H11,2)","v":0},683.7]
[{"$nulls":4},"%",1,0,0,1]
[null,{"$f":"'PLANILHA ORÇAMENTÁRIA'!B19","v":"1.4"},{"$f":"'PLANILHA ORÇAMENTÁRIA'!C19","v":"SICRO 5914640"},{"$f":"'PLANILHA ORÇAMENTÁRIA'!D19","v":"TRANSPORTE DE EQUIPAMENTOS EM RODOVIA PAVIMENTADA - MOBILIZAÇÃO"},{"$f":"'PLANILHA ORÇAMENTÁRIA'!J19","v":757.84},{"$f":"TRUNC($E$12*F13,2)","v":757.84},{"$f":"TRUNC($E$12*G13,2)","v":0},{"$f":"TRUNC($E$12*H13,2)","v":0},757.84]
[{"$nulls":4},"%",1,0,0,1]
[null,{"$f":"'PLANILHA ORÇAMENTÁRIA'!B20","v":"1.5"},{"$f":"'PLANILHA ORÇAMENTÁRIA'!C20","v":"SICRO 5914639"},{"$f":"'PLANILHA ORÇAMENTÁRIA'!D20","v":"TRANSPORTE DE EQUIPAMENTOS EM RODOVIA COM REVESTIMENTO PRIMÁRIO - DESMOBILIZAÇÃO"},{"$f":"'PLANILHA ORÇAMENTÁRIA'!J20","v":683.7},{"$f":"TRUNC($E$14*F15,2)","v":0},{"$f":"TRUNC($E$14*G15,2)","v":341.85},{"$f":"TRUNC($E$14*H15,2)","v":341.85},683.7]
[{"$nulls":4},"%",0,0.5,0.5,1]
[null,{"$f":"'PLANILHA ORÇAMENTÁRIA'!B21","v":"1.6"},{"$f":"'PLANILHA ORÇAMENTÁRIA'!C21","v":"SICRO 5914640"},{"$f":"'PLANILHA ORÇAMENTÁRIA'!D21","v":"TRANSPORTE DE EQUIPAMENTOS EM RODOVIA PAVIMENTADA - DESMOBILIZAÇÃO"},{"$f":"'PLANILHA ORÇAMENTÁRIA'!J21","v":757.84},{"$f":"TRUNC($E$16*F17,2)","v":0},{"$f":"TRUNC($E$16*G17,2)","v":378.92},{"$f":"TRUNC($E$16*H17,2)","v":378.92},757.84]
[{"$nulls":4},"%",0,0.5,0.5,1]
[{"$nulls":4},{"$f":"SUM(E6,E8,E10,E12,E14,E16)","v":24058.47},{"$f":"SUM(F6,F8,F10,F12,F14,F16)","v":7027.9800000000005},{"$f":"SUM(G6,G8,G10,G12,G14,G16)","v":9196.08},7834.4100000000008,{"$f":"SUM(I6,I8,I10,I12,I14,I16)","v":24058.47}]
[null,{"$f":"'PLANILHA ORÇAMENTÁRIA'!B25","v":2},"SERVIÇOS TÉCNICOS PARA LIMPEZA, REGULARIZAÇÃO DE SUBLEITO E REVESTIMENTO PRIMÁRIO DE ESTRADA VICINAL",null,"VALOR TOTAL","MÊS 1","MÊS 2","MÊS 3","TOTAL"]
[null,{"$f":"'PLANILHA ORÇAMENTÁRIA'!B26","v":"2.1"},{"$f":"'PLANILHA ORÇAMENTÁRIA'!C26","v":"ADAPTADO DE SICRO 5502985"},{"$f":"'PLANILHA ORÇAMENTÁRIA'!D26","v":"LIMPEZA MECANIZADA DA CAMADA VEGETAL COM RETROESCAVADEIRA"},{"$f":"'PLANILHA ORÇAMENTÁRIA'!J26","v":12574.2},{"$f":"TRUNC($E$20*F21,2)","v":6287.1},{"$f":"TRUNC($E$20*G21,2)","v":6287.1},{"$f":"TRUNC($E$20*H21,2)","v":0},{"$f":"SUM(F20:H20)","v":12574.2}]
[{"$nulls":4},"%",0.5,0.5,0,1]
[null,{"$f":"'PLANILHA ORÇAMENTÁRIA'!B27","v":"2.2"},{"$f":"'PLANILHA ORÇAMENTÁRIA'!C27","v":"SICRO 4011209"},{"$f":"'PLANILHA ORÇAMENTÁRIA'!D27","v":"REGULARIZAÇÃO DE SUBLEITO"},{"$f":"'PLANILHA ORÇAMENTÁRIA'!J27","v":62686.2},{"$f":"TRUNC($E$22*F23,2)","v":31343.1},{"$f":"TRUNC($E$22*G23,2)","v":31343.1},{"$f":"TRUNC($E$22*H23,2)","v":0},62686.2]
[{"$nulls":4},"%",0.5,0.5,0,1]
[null,{"$f":"'PLANILHA ORÇAMENTÁRIA'!B28","v":"2.3"},{"$f":"'PLANILHA ORÇAMENTÁRIA'!C28","v":"SICRO 4015612"},{"$f":"'PLANILHA ORÇAMENTÁRIA'!D28","v":"EXECUÇÃO DE REVESTIMENTO PRIMÁRIO COM MATERIAL DE JAZIDA"},{"$f":"'PLANILHA ORÇAMENTÁRIA'!J28","v":68511.75},{"$f":"TRUNC($E$24*F25,2)","v":0},{"$f":"TRUNC($E$24*G25,2)","v":34255.870000000003},{"$f":"TRUNC($E$24*H25,2)","v":34255.879999999997},68511.75]
[{"$nulls":4},"%",0,0.5,0.50000020000000001,1.0000002000000001]
[null,{"$f":"'PLANILHA ORÇAMENTÁRIA'!B29","v":"2.4"},{"$f":"'PLANILHA ORÇAMENTÁRIA'!C29","v":"SICRO 4016096"},{"$f":"'PLANILHA ORÇAMENTÁRIA'!D29","v":"ESCAVAÇÃO E CARGA DE MATERIAL DE JAZIDA COM ESCAVADEIRA HIDRÁULICA DE 1,56 M³"},{"$f":"'PLANILHA ORÇAMENTÁRIA'!J29","v":8079.77},{"$f":"TRUNC($E$26*F27,2)","v":0},{"$f":"TRUNC($E$26*G27,2)","v":4039.88},{"$f":"TRUNC($E$26*H27,2)","v":4039.89},8079.77]
[{"$nulls":4},"%",0,0.5,0.50000100000000003,1.0000010000000001]
[null,{"$f":"'PLANILHA ORÇAMENTÁRIA'!B30","v":"2.5"},{"$f":"'PLANILHA ORÇAMENTÁRIA'!C30","v":"SICRO 5901639"},{"$f":"'PLANILHA ORÇAMENTÁRIA'!D30","v":"TRANSPORTE COM CAMINHÃO BASCULANTE COM CAÇAMBA ESTANQUE COM CAPACIDADE DE 14 M³ - RODOVIA EM LEITO NATURAL"},{"$f":"'PLANILHA ORÇAMENTÁRIA'!J30","v":176886.25},{"$f":"TRUNC($E$28*F29,2)","v":0},{"$f":"TRUNC($E$28*G29,2)","v":88443.12},{"$f":"TRUNC($E$28*H29,2)","v":88443.13},176886.25]
[{"$nulls":4},"%",0,0.5,0.50000005000000003,1.0000000500000001]
[null,{"$f":"'PLANILHA ORÇAMENTÁRIA'!B31","v":"2.6"},{"$f":"'PLANILHA ORÇAMENTÁRIA'!C31","v":"SICRO 5901640"},{"$f":"'PLANILHA ORÇAMENTÁRIA'!D31","v":"TRANSPORTE COM CAMINHÃO BASCULANTE COM CAÇAMBA ESTANQUE COM CAPACIDADE DE 14 M³ - RODOVIA PAVIMENTADA"},{"$f":"'PLANILHA ORÇAMENTÁRIA'!J31","v":138123.62},{"$f":"TRUNC($E$30*F31,2)","v":0},{"$f":"TRUNC($E$30*G31,2)","v":69061.81},{"$f":"TRUNC($E$30*H31,2)","v":69061.81},138123.62]
[{"$nulls":4},"%",0,0.5,0.50000001000000005,1.0000000099999999]
[{"$nulls":4},{"$f":"SUM(E20,E22,E24,E26,E28,E30)","v":466861.79},{"$f":"SUM(F20,F22,F24,F26,F28,F30)","v":37630.199999999997},{"$f":"SUM(G20,G22,G24,G26,G28,G30)","v":233430.88},{"$f":"SUM(H20,H22,H24,H26,H28,H30)","v":195800.71},{"$f":"SUM(I20,I22,I24,I26,I28,I30)","v":466861.79}]
[null,null,null,"TOTAL",{"$f":"SUM(E18,E32)","v":490920.26},{"$f":"SUM(F18,F32)","v":44658.18},{"$f":"SUM(G18,G32)","v":242626.96},{"$f":"SUM(H18,H32)","v":203635.12},{"$f":"SUM(I18,I32)","v":490920.26}]
[null,null,null,"TOTAL - ADMINISTRAÇÃO LOCAL",{"$f":"E33-E10","v":490236.56}]
[null,null,null,"TOTAL SEM ADMINISTRAÇÃO:",{"$f":"E33-E6","v":473770.69},{"$f":"F33-F6","v":43097.56},{"$f":"G33-G6","v":234151.65},{"$f":"H33-H6","v":196521.47999999998}]
[null,null,null,"% PARA ADMINISTRAÇÃO",null,{"$f":"F35/$E$35","v":9.0967130110982591E-2},{"$f":"G35/$E$35","v":0.49422991954187795},0.41480295034713943]

{"sheet":"MEMÓRIA DE CÁLCULOS","index":2,"n_rows":25,"n_cols":6,"rows_kept":25,"cut":false,"hidden":false,"merged":[[10,1,10,2],[11,1,11,2],[18,1,18,2],[4,0,6,5],[0,2,0,5],[1,2,1,5],[2,2,2,5],[8,0,8,1],[8,2,8,5]]}
[null,null,"Ministério da Integração e do Desenvolvimento Regional - MIDR"]
[null,null,"Companhia de Desenvolvimento dos Vales do São Francisco e Parnaíba - CODEVASF"]
[null,null,"2ª Superintendência Regional - Gerência Regional de Infraestrutura (2ª/GRD)"]
[]
["ANEXO 4 - MEMÓRIA DE CÁLCULOS - MÓDULO MÍNIMO DE 30.000 M² DE ESTRADAS"]
[]
[]
[]
["OBJETO:",null,"CONTRATAÇÃO DE OBRAS E SERVIÇOS DE ENGENHARIA PARA REGULARIZAÇÃO DE SUBLEITO E EXECUÇÃO DE REVESTIMENTO PRIMÁRIO NA ESTRADA DA IPUEIRA, MUNICÍPIO DE SERRA DO RAMALHO, NA ÁREA DE ABRANGÊNCIA DA 2ª SUPERINTENDÊNCIA REGIONAL DA CODEVASF, NO ESTADO DA BAHIA."]
[]
["ITEM","DISCRIMINAÇÃO DOS SERVIÇOS ",null,"UNIDADE","QUANTIDADE","MEMÓRIAS DE CÁLCULOS"]
[1,"SERVIÇOS PRELIMINARES E ADMINISTRAÇÃO LOCAL"]
["1.1",{"$f":"'COMPOSIÇÕES SINAPI'!A11","v":"CPU-01"},{"$f":"'COMPOSIÇÕES SINAPI'!D11","v":"ADMINISTRAÇÃO LOCAL"},{"$f":"'COMPOSIÇÕES SINAPI'!E11","v":"%"},1,"Serão utilizados 192 horas de encarregado geral + 48 horas de engenheiro de obras júnior."]
["1.2",{"$f":"'COMPOSIÇÕES SINAPI'!A16","v":"CPU-02"},{"$f":"'COMPOSIÇÕES SINAPI'!D16","v":"PLACA DE OBRA EM CHAPA DE AÇO GALVANIZADO (1,80 M * 3,60 M)"},{"$f":"'COMPOSIÇÕES SINAPI'!E16","v":"m²"},{"$f":"1.8*3.6","v":6.48},"Será fornecida e instalada 01 placa de obra com 1,80 m de altura e 3,60 m  de largura = 6,48 m² por placa."]
["1.3",{"$f":"'COMPOSIÇÕES SICRO'!A151","v":"SICRO 5914639"},"TRANSPORTE DE EQUIPAMENTOS EM RODOVIA COM REVESTIMENTO PRIMÁRIO - MOBILIZAÇÃO",{"$f":"'COMPOSIÇÕES SICRO'!I150","v":"tkm"},{"$f":"TRUNC(SUM('Mob e Desmob OBRA cascalho'!F27:G27+'Mob e Desmob JAZ. cascalho'!F25:G25),2)","v":823.74},"Cálculo: 460,74 tkm (Bom Jesus da Lapa à obra) + 363,00 tkm (Bom Jesus da Lapa à jazida de cascalho) = 823,74 tkm no total"]
["1.4",{"$f":"'COMPOSIÇÕES SICRO'!A177","v":"SICRO 5914640"},"TRANSPORTE DE EQUIPAMENTOS EM RODOVIA PAVIMENTADA - MOBILIZAÇÃO",{"$f":"'COMPOSIÇÕES SICRO'!I176","v":"tkm"},{"$f":"TRUNC(SUM('Mob e Desmob OBRA asfalto'!F27:G27+'Mob e Desmob JAZ. asfalto'!F25:G25),2)","v":1098.32},"Cálculo: 614,32 tkm (Bom Jesus da Lapa à obra) + 484,00 tkm (Bom Jesus da Lapa à jazida de cascalho) = 1.098,32 tkm no total"]
["1.5",{"$f":"'COMPOSIÇÕES SICRO'!A151","v":"SICRO 5914639"},"TRANSPORTE DE EQUIPAMENTOS EM RODOVIA COM REVESTIMENTO PRIMÁRIO - DESMOBILIZAÇÃO",{"$f":"'COMPOSIÇÕES SICRO'!I150","v":"tkm"},{"$f":"TRUNC(SUM('Mob e Desmob OBRA cascalho'!F27:G27+'Mob e Desmob JAZ. cascalho'!F25:G25),2)","v":823.74},"Cálculo: 460,74 tkm (Bom Jesus da Lapa à obra) + 363,00 tkm (Bom Jesus da Lapa à jazida de cascalho) = 823,74 tkm no total"]
["1.6",{"$f":"'COMPOSIÇÕES SICRO'!A177","v":"SICRO 5914640"},"TRANSPORTE DE EQUIPAMENTOS EM RODOVIA PAVIMENTADA - DESMOBILIZAÇÃO",{"$f":"'COMPOSIÇÕES SICRO'!I176","v":"tkm"},{"$f":"TRUNC(SUM('Mob e Desmob OBRA asfalto'!F27:G27+'Mob e Desmob JAZ. asfalto'!F25:G25),2)","v":1098.32},"Cálculo: 614,32 tkm (Bom Jesus da Lapa à obra) + 484,00 tkm (Bom Jesus da Lapa à jazida de cascalho) = 1.098,32 tkm no total"]
[2,"SERVIÇOS TÉCNICOS PARA LIMPEZA, REGULARIZAÇÃO DE SUBLEITO E REVESTIMENTO PRIMÁRIO DE ESTRADAS VICINAIS"]
["2.1",{"$f":"'COMPOSIÇÕES SICRO'!A72","v":"ADAPTADO DE SICRO 5502985"},"LIMPEZA MECANIZADA DA CAMADA VEGETAL COM RETROESCAVADEIRA",{"$f":"'COMPOSIÇÕES SICRO'!I71","v":"m²"},23285.57,"Vide levantamentos topográficos."]
["2.3",{"$f":"'COMPOSIÇÕES SICRO'!A203","v":"SICRO 4011209"},"REGULARIZAÇÃO DE SUBLEITO",{"$f":"'COMPOSIÇÕES SICRO'!I202","v":"m²"},32820,"Vide levantamentos topográficos."]
["2.4",{"$f":"'COMPOSIÇÕES SICRO'!A10","v":"SICRO 4015612"},"EXECUÇÃO DE REVESTIMENTO PRIMÁRIO COM MATERIAL DE JAZIDA",{"$f":"'COMPOSIÇÕES SICRO'!I9","v":"m³"},4102.5,"Volume geométrico compactado (vide levantamentos topográficos)."]
["2.5",{"$f":"'COMPOSIÇÕES SICRO'!A45","v":"SICRO 4016096"},"ESCAVAÇÃO E CARGA DE MATERIAL DE JAZIDA COM ESCAVADEIRA HIDRÁULICA DE 1,56 M³",{"$f":"'COMPOSIÇÕES SICRO'!I44","v":"m³"},{"$f":"TRUNC(E22*(2.063/1.875),2)","v":4513.84},"Volume geométrico compactado * empolamento (2,063/1,875 = 1,10) - (massa específica compactada/massa específica do material natural)"]
["2.6",{"$f":"'COMPOSIÇÕES SICRO'!A99","v":"SICRO 5901639"},"TRANSPORTE COM CAMINHÃO BASCULANTE COM CAÇAMBA ESTANQUE COM CAPACIDADE DE 14 M³ - RODOVIA EM LEITO NATURAL",{"$f":"'COMPOSIÇÕES SICRO'!I98","v":"tkm"},{"$f":"TRUNC(E22*(2.063/1.5)*1.5*19,2)","v":160805.69},"Transporte de material de jazida: 4.102,50 m³ (material para revestimento) * 2.063/1,50 (massa específica compactada/massa específica solta) * 1,50 (densidade do material) * 19 km em leito natual = 160.805,69 tkm."]
["2.7",{"$f":"'COMPOSIÇÕES SICRO'!A125","v":"SICRO 5901640"},"TRANSPORTE COM CAMINHÃO BASCULANTE COM CAÇAMBA ESTANQUE COM CAPACIDADE DE 14 M³ - RODOVIA PAVIMENTADA",{"$f":"'COMPOSIÇÕES SICRO'!I124","v":"tkm"},{"$f":"TRUNC(E22*(2.063/1.5)*1.5*20.4,2)","v":172654.53},"Transporte de material de jazida: 4.102,50 m³ (material para revestimento) * 2.063/1,50 (massa específica compactada/massa específica solta) * 1,50 (densidade do material) * 20,4 km em via pavimentada = 172.654,53 tkm."]

{"sheet":"COMPOSIÇÕES SICRO","index":3,"n_rows":230,"n_cols":9,"rows_kept":230,"cut":false,"hidden":false,"merged":[[144,2,144,6],[145,4,145,6],[137,6,137,8],[138,2,138,6],[140,7,140,8],[141,2,141,6],[142,0,143,1],[142,2,143,2],[142,3,143,3],[142,4,142,6],[142,8,143,8],[0,0,0,6],[1,0,1,6],[2,0,2,6],[4,0,4,8],[0,7,2,8],[9,7,9,8],[10,3,10,4],[10,5,10,6],[19,6,19,8],[10,0,11,1],[9,1,9,6],[21,2,21,6],[44,7,44,8],[45,3,45,4],[45,5,45,6],[49,6,49,8],[51,2,51,6],[52,2,52,6],[22,2,22,6],[23,2,23,6],[26,6,26,8],[27,2,27,6],[28,6,28,8],[30,2,30,6],[32,7,32,8],[34,2,34,6],[35,4,35,6],[35,8,36,8],[71,7,71,8],[72,3,72,4],[72,5,72,6],[76,6,76,8],[78,2,78,6],[79,2,79,6],[80,2,80,6],[53,2,53,6],[56,6,56,8],[57,2,57,6],[58,6,58,8],[59,2,59,6],[61,7,61,8],[62,2,62,6],[63,4,63,6],[65,2,65,6],[63,8,64,8],[98,7,98,8],[99,3,99,4],[99,5,99,6],[103,6,103,8],[104,2,104,6],[105,2,105,6],[106,2,106,6],[109,6,109,8],[83,6,83,8],[84,2,84,6],[85,6,85,8],[86,2,86,6],[88,7,88,8],[89,2,89,6],[90,4,90,6],[92,2,92,6],[93,4,93,6],[90,3,91,3],[90,8,91,8],[110,2,110,6],[111,6,111,8],[112,2,112,6],[114,7,114,8],[115,2,115,6],[116,4,116,6],[118,2,118,6],[119,4,119,6],[150,1,150,6],[150,7,150,8],[116,3,117,3],[116,8,117,8],[124,1,124,6],[124,7,124,8],[125,0,126,1],[125,2,126,2],[125,3,125,4],[125,5,125,6],[129,6,129,8],[130,2,130,6],[131,2,131,6],[132,2,132,6],[135,6,135,8],[136,2,136,6],[151,3,151,4],[151,5,151,6],[155,6,155,8],[156,2,156,6],[157,2,157,6],[158,2,158,6],[161,6,161,8],[162,2,162,6],[163,6,163,8],[192,7,192,8],[164,2,164,6],[166,7,166,8],[167,2,167,6],[168,4,168,6],[170,2,170,6],[171,4,171,6],[176,1,176,6],[176,7,176,8],[177,3,177,4],[177,5,177,6],[168,3,169,3],[168,8,169,8],[226,4,226,6],[228,2,228,6],[229,4,229,6],[226,3,227,3],[226,8,227,8],[226,0,227,1],[10,2,11,2],[35,2,36,2],[45,2,46,2],[63,2,64,2],[72,2,73,2],[90,2,91,2],[99,2,100,2],[116,2,117,2],[151,2,152,2],[168,2,169,2],[177,2,178,2],[194,2,195,2],[203,2,204,2],[226,2,227,2],[35,3,36,3],[63,3,64,3],[90,0,91,1],[72,0,73,1],[35,0,36,1],[45,0,46,1],[63,0,64,1],[99,0,100,1],[98,1,98,6],[66,4,66,6],[71,1,71,6],[38,2,38,6],[39,4,39,6],[44,1,44,6],[151,0,152,1],[168,0,169,1],[177,0,178,1],[116,0,117,1],[214,2,214,6],[215,2,215,6],[216,2,216,6],[219,6,219,8],[220,2,220,6],[203,3,203,4],[203,5,203,6],[212,6,212,8],[194,3,195,3],[194,8,195,8],[203,0,204,1],[194,0,195,1],[181,6,181,8],[182,2,182,6],[183,2,183,6],[184,2,184,6],[187,6,187,8],[188,2,188,6],[189,6,189,8],[190,2,190,6],[221,6,221,8],[222,2,222,6],[224,7,224,8],[225,2,225,6],[193,2,193,6],[194,4,194,6],[196,2,196,6],[197,4,197,6],[202,1,202,6],[202,7,202,8]]}
[" MINISTÉRIO DA INTEGRAÇÃO E DO DESENVOLVIMENTO REGIONAL"]
[" COMPANHIA DE DESENVOLVIMENTO DOS VALES DO SÃO FRANCISCO E DO PARNAÍBA"]
["2ª SUPERINTENDÊNCIA REGIONAL - GERÊNCIA DE INFRAESTRUTURA"]
[]
["OBJETO: CONTRATAÇÃO DE OBRAS E SERVIÇOS DE ENGENHARIA PARA REGULARIZAÇÃO DE SUBLEITO E EXECUÇÃO DE REVESTIMENTO PRIMÁRIO NA ESTRADA DA IPUEIRA, MUNICÍPIO DE SERRA DO RAMALHO, NA ÁREA DE ABRANGÊNCIA DA 2ª SUPERINTENDÊNCIA REGIONAL DA CODEVASF, NO ESTADO DA BAHIA."]
[]
["CGCIT",{"$nulls":7},"DNIT"]
["SISTEMA DE CUSTOS REFERENCIAIS DE OBRAS - SICRO",null,null,"Bahia",null,null,"FIC",1.4250000000000001E-2]
["Custo Unitário de Referência",null,null,"Abril de 2025",null,null,"Produção da equipe ",134.56,"m³"]
["SICRO 4015612","Execução de revestimento primário com material de jazida - 100% Proctor intermediário",{"$nulls":5},"Valores em reais (R$)"]
["A - EQUIPAMENTOS",null,"Quantidade","Utilização",null,"Custo Horário",null,null,"Custo"]
[null,null,null,"Operativa","Improdutiva","Produtivo","Improdutivo",null,"Horário Total"]
[{"$f":"'CUSTOS UNIT. SICRO e SINAPI'!D8","v":"E9571"},{"$f":"'CUSTOS UNIT. SICRO e SINAPI'!A8","v":"Caminhão tanque com capacidade de 10.000 l - 188 kW"},1,0.74,0.26,{"$f":"'CUSTOS UNIT. SICRO e SINAPI'!F8","v":331.9819},{"$f":"'CUSTOS UNIT. SICRO e SINAPI'!G8","v":87.660300000000007},null,{"$f":"ROUND(((D13*F13)+(E13*G13))*C13,4)","v":268.45830000000001}]
[{"$f":"'CUSTOS UNIT. SICRO e SINAPI'!D14","v":"E9518"},{"$f":"'CUSTOS UNIT. SICRO e SINAPI'!A14","v":"Grade de 24 discos rebocável de D = 60 cm (24\")"},1,0.41,0.59,{"$f":"'CUSTOS UNIT. SICRO e SINAPI'!F14","v":5.0244999999999997},{"$f":"'CUSTOS UNIT. SICRO e SINAPI'!G14","v":3.4990000000000001},null,4.1245000000000003]
[{"$f":"'CUSTOS UNIT. SICRO e SINAPI'!D15","v":"E9524"},{"$f":"'CUSTOS UNIT. SICRO e SINAPI'!A15","v":"Motoniveladora - 93 kW"},1,0.59,0.41,{"$f":"'CUSTOS UNIT. SICRO e SINAPI'!F15","v":287.66609999999997},{"$f":"'CUSTOS UNIT. SICRO e SINAPI'!G15","v":128.1841},null,222.27850000000001]
[{"$f":"'CUSTOS UNIT. SICRO e SINAPI'!D17","v":"E9762"},{"$f":"'CUSTOS UNIT. SICRO e SINAPI'!A17","v":"Rolo compactador de pneus autopropelido de 27 t - 85 kW"},1,0.96,0.04,{"$f":"'CUSTOS UNIT. SICRO e SINAPI'!F17","v":262.6866},{"$f":"'CUSTOS UNIT. SICRO e SINAPI'!G17","v":131.0659},null,257.42180000000002]
[{"$f":"'CUSTOS UNIT. SICRO e SINAPI'!D18","v":"E9685"},{"$f":"'CUSTOS UNIT. SICRO e SINAPI'!A18","v":"Rolo compactador pé de carneiro vibratório autopropelido por pneus de 11,6 t - 82 kW"},1,1,0,{"$f":"'CUSTOS UNIT. SICRO e SINAPI'!F18","v":231.6833},{"$f":"'CUSTOS UNIT. SICRO e SINAPI'!G18","v":107.4007},null,231.6833]
[{"$f":"'CUSTOS UNIT. SICRO e SINAPI'!D19","v":"E9577"},{"$f":"'CUSTOS UNIT. SICRO e SINAPI'!A19","v":"Trator agrícola sobre pneus - 77 kW"},1,0.41,0.59,{"$f":"'CUSTOS UNIT. SICRO e SINAPI'!F19","v":159.0566},{"$f":"'CUSTOS UNIT. SICRO e SINAPI'!G19","v":62.311799999999998},null,101.9772]
[{"$nulls":6},"Custo horário total de equipamentos",null,{"$f":"ROUNDDOWN(I13+I14+I15+I16+I17+I18,4)","v":1085.9436000000001}]
["B - MÃO DE OBRA",null,"Quantidade","Unidade",null,"Custo Horário","Custo Horário Total"]
[{"$f":"'CUSTOS UNIT. SICRO e SINAPI'!D34","v":"SINAPI 88316"},{"$f":"'CUSTOS UNIT. SICRO e SINAPI'!A34","v":"SERVENTE COM ENCARGOS COMPLEMENTARES"},1,"h",null,{"$f":"'CUSTOS UNIT. SICRO e SINAPI'!F34","v":24.37},null,null,{"$f":"ROUND(C21*F21,4)","v":24.37}]
[null,null,"Custo horário total de mão de obra",{"$nulls":5},{"$f":"SUM(I21)","v":24.37}]
[null,null,"Custo horário total de execução",{"$nulls":5},{"$f":"ROUNDDOWN(I19+I22,4)","v":1110.3136}]
[null,null,"Custo unitário de execução",{"$nulls":5},{"$f":"ROUNDUP(I23/H9,4)","v":8.2515000000000001}]
[{"$nulls":6},"Custo do FIC",null,{"$f":"ROUND(I24*H8,4)","v":0.1176}]
[{"$nulls":6},"Custo do FIT",null,"-"]
["C - MATERIAL",null,"Quantidade","Unidade",null,"Preço Unitário","Custo Unitário"]
[null,null,"Custo unitário total de material"]
["D - ATIVIDADES AUXILIARES",null,"Quantidade","Unidade",null,"Custo Unitário","Custo Unitário"]
[{"$f":"'CUSTOS UNIT. SICRO e SINAPI'!D10","v":4016096},{"$f":"'CUSTOS UNIT. SICRO e SINAPI'!A10","v":"Escavação e carga de material de jazida com escavadeira hidráulica de 1,56 m³"},1.1002700000000001,"m³",null,{"$f":"'CUSTOS UNIT. SICRO e SINAPI'!F10","v":1.48},null,null,{"$f":"ROUND(C30*F30,4)","v":1.6284000000000001}]
[null,null,"Custo total de atividades auxiliares",{"$nulls":5},{"$f":"ROUND(I30,4)","v":1.6284000000000001}]
[{"$nulls":6},"Subtotal",null,{"$f":"ROUND(I24+I25+I31,4)","v":9.9975000000000005}]
["E - TEMPO FIXO",null,"Código","Quantidade","Unidade",null,"Custo Unitário","Custo Unitário"]
[{"$f":"'CUSTOS UNIT. SICRO e SINAPI'!D11","v":4016096},{"$f":"'CUSTOS UNIT. SICRO e SINAPI'!A11","v":"Escavação e carga de material de jazida com escavadeira hidráulica de 1,56 m³ - Caminhão basculante 10 m³"},"5914354",2.0630099999999998,"t",null,{"$f":"'CUSTOS UNIT. SICRO e SINAPI'!F11","v":1.82},null,{"$f":"ROUND(D34*G34,4)","v":3.7547000000000001}]
[null,null,"Custo unitário total de tempo fixo",{"$nulls":5},{"$f":"ROUND(I34,4)","v":3.7547000000000001}]
["F - MOMENTO DE TRANSPORTE",null,"Quantidade","Unidade","DMT",null,null,null,"Custo Unitário"]
[{"$nulls":4},"LN","RP","P"]
["4016096","Escavação e carga de material de jazida com escavadeira hidráulica de 1,56 m³ - Caminhão basculante 10 m³",206301,"tkm","5914359","5914374","5914389"]
[null,null,"Custo unitário total de transporte"]
[{"$nulls":4},"Custo unitário direto total",null,null,null,{"$f":"TRUNC(I32+I35,2)","v":13.75}]
[]
["CGCIT",{"$nulls":7},"DNIT"]
["SISTEMA DE CUSTOS REFERENCIAIS DE OBRAS - SICRO",null,null,"Bahia",null,null,"FIC",1.4250000000000001E-2]
["Custo Unitário de Referência",null,null,"Abril de 2025",null,null,"Produção da equipe ",230.19,"m³"]
["SICRO 4016096","Escavação e carga de material de jazida com escavadeira hidráulica de 1,56 m³",{"$nulls":5},"Valores em reais (R$)"]
["A - EQUIPAMENTOS",null,"Quantidade","Utilização",null,"Custo Horário",null,null,"Custo"]
[null,null,null,"Operativa","Improdutiva","Produtivo","Improdutivo",null,"Horário Total"]
[{"$f":"'CUSTOS UNIT. SICRO e SINAPI'!D13","v":"E9515"},{"$f":"'CUSTOS UNIT. SICRO e SINAPI'!A13","v":"Escavadeira hidráulica sobre esteiras com caçamba com capacidade de 1,56 m³ - 118 Kw"},1,1,0,{"$f":"'CUSTOS UNIT. SICRO e SINAPI'!F13","v":312.41210000000001},{"$f":"'CUSTOS UNIT. SICRO e SINAPI'!G13","v":145.58539999999999},null,{"$f":"ROUND(((D48*F48)+(E48*G48))*C48,4)","v":312.41210000000001}]
[{"$nulls":6},"Custo horário total de equipamentos",null,{"$f":"ROUND(I48,4)","v":312.41210000000001}]
["B - MÃO DE OBRA",null,"Quantidade","Unidade",null,"Custo Horário","Custo Horário Total"]
[{"$f":"'CUSTOS UNIT. SICRO e SINAPI'!D34","v":"SINAPI 88316"},{"$f":"'CUSTOS UNIT. SICRO e SINAPI'!A34","v":"SERVENTE COM ENCARGOS COMPLEMENTARES"},1,"h",null,{"$f":"'CUSTOS UNIT. SICRO e SINAPI'!F34","v":24.37},null,null,{"$f":"ROUND(C51*F51,4)","v":24.37}]
[null,null,"Custo horário total de mão de obra",{"$nulls":5},{"$f":"ROUND(I51,4)","v":24.37}]
[null,null,"Custo horário total de execução",{"$nulls":5},{"$f":"ROUND(I49+I52,4)","v":336.78210000000001}]
[null,null,"Custo unitário de execução",{"$nulls":5},{"$f":"ROUNDDOWN(I53/H44,4)","v":1.4630000000000001}]
[{"$nulls":6},"Custo do FIC",null,{"$f":"ROUNDUP(I54*H43,4)","v":2.0899999999999998E-2}]
[{"$nulls":6},"Custo do FIT",null,"-"]
["C - MATERIAL",null,"Quantidade","Unidade",null,"Preço Unitário","Custo Unitário"]
[null,null,"Custo unitário total de material"]
["D - ATIVIDADES AUXILIARES",null,"Quantidade","Unidade",null,"Custo Unitário","Custo Unitário"]
[null,null,"Custo total de atividades auxiliares"]
[{"$nulls":6},"Subtotal",null,{"$f":"ROUND(I54+I55,4)","v":1.4839}]
["E - TEMPO FIXO",null,"Código","Quantidade","Unidade",null,"Custo Unitário","Custo Unitário"]
[null,null,"Custo unitário total de tempo fixo"]
["F - MOMENTO DE TRANSPORTE",null,"Quantidade","Unidade","DMT",null,null,null,"Custo Unitário"]
[{"$nulls":4},"LN","RP","P"]
[null,null,"Custo unitário total de transporte"]
[{"$nulls":4},"Custo unitário direto total",null,null,null,{"$f":"TRUNC(I61,2)","v":1.48}]
[]
["CGCIT",{"$nulls":7},"DNIT"]
["SISTEMA DE CUSTOS REFERENCIAIS DE OBRAS - SICRO",null,null,"Bahia",null,null,"FIC",1.4250000000000001E-2]
["Custo Unitário de Referência",null,null,"Abril de 2025",null,null,"Produção da equipe ",404.92,"m²"]
["ADAPTADO DE SICRO 5502985","Limpeza mecanizada da camada vegetal com retroescavadeira de pneus com capacidade de 0,76 m³ e da retroescavadeira de 0,29 m³ - 58 Kw",{"$nulls":5},"Valores em reais (R$)"]
["A - EQUIPAMENTOS",null,"Quantidade","Utilização",null,"Custo Horário",null,null,"Custo"]
[null,null,null,"Operativa","Improdutiva","Produtivo","Improdutivo",null,"Horário Total"]
[{"$f":"'CUSTOS UNIT. SICRO e SINAPI'!D16","v":"E9526"},{"$f":"'CUSTOS UNIT. SICRO e SINAPI'!A16","v":"Retroescavadeira de pneus com capacidade de 0,76 m³ e da retroescavadeira de 0,29 m³- 58 Kw"},1,1,0,{"$f":"'CUSTOS UNIT. SICRO e SINAPI'!F16","v":157.8623},{"$f":"'CUSTOS UNIT. SICRO e SINAPI'!G16","v":83.055999999999997},null,{"$f":"(((D75*F75)+(E75*G75))*C75)","v":157.8623}]
[{"$nulls":6},"Custo horário total de equipamentos",null,{"$f":"SUM(I75)","v":157.8623}]
["B - MÃO DE OBRA",null,"Quantidade","Unidade",null,"Custo Horário","Custo Horário Total"]
[{"$f":"'CUSTOS UNIT. SICRO e SINAPI'!D34","v":"SINAPI 88316"},{"$f":"'CUSTOS UNIT. SICRO e SINAPI'!A34","v":"SERVENTE COM ENCARGOS COMPLEMENTARES"},1,"h",null,{"$f":"'CUSTOS UNIT. SICRO e SINAPI'!F34","v":24.37},null,null,{"$f":"C78*F78","v":24.37}]
[null,null,"Custo horário total de mão de obra",{"$nulls":5},{"$f":"SUM(I78)","v":24.37}]
[null,null,"Custo horário total de execução",{"$nulls":5},{"$f":"SUM(I76,I79)","v":182.23230000000001}]
[null,null,"Custo unitário de execução",{"$nulls":5},{"$f":"I80/H71","v":0.45004519411241728}]
[{"$nulls":6},"Custo do FIC",null,{"$f":"ROUNDDOWN(I81*H70,4)","v":6.4000000000000003E-3}]
[{"$nulls":6},"Custo do FIT",null,"-"]
["C - MATERIAL",null,"Quantidade","Unidade",null,"Preço Unitário","Custo Unitário"]
[null,null,"Custo unitário total de material"]
["D - ATIVIDADES AUXILIARES",null,"Quantidade","Unidade",null,"Custo Unitário","Custo Unitário"]
[null,null,"Custo total de atividades auxiliares"]
[{"$nulls":6},"Subtotal",null,{"$f":"ROUNDUP(I81+I82,4)","v":0.45649999999999996}]
["E - TEMPO FIXO",null,"Código","Quantidade","Unidade",null,"Custo Unitário","Custo Unitário"]
[null,null,"Custo unitário total de tempo fixo"]
["F - MOMENTO DE TRANSPORTE",null,"Quantidade","Unidade","DMT",null,null,null,"Custo Unitário"]
[{"$nulls":4},"LN","RP","P"]
[null,null,"Custo unitário total de transporte"]
[{"$nulls":4},"Custo unitário direto total",null,null,null,{"$f":"TRUNC(I88,2)","v":0.45}]
[]
["CGCIT",{"$nulls":7},"DNIT"]
["SISTEMA DE CUSTOS REFERENCIAIS DE OBRAS - SICRO",null,null,"Bahia",null,null,"FIC",1.4250000000000001E-2]
["Custo Unitário de Referência",null,null,"Abril de 2025",null,null,"Produção da equipe ",348.6,"tkm"]
["SICRO 5901639","Transporte com caminhão basculante com caçamba estanque com capacidade de 14 m³ - rodovia em leito natural",{"$nulls":5},"Valores em reais (R$)"]
["A - EQUIPAMENTOS",null,"Quantidade","Utilização",null,"Custo Horário",null,null,"Custo"]
[null,null,null,"Operativa","Improdutiva","Produtivo","Improdutivo",null,"Horário Total"]
[{"$f":"'CUSTOS UNIT. SICRO e SINAPI'!D6","v":"E9575"},{"$f":"'CUSTOS UNIT. SICRO e SINAPI'!A6","v":"Caminhão basculante com caçamba estanque com capacidade de 14 m³ - 210 Kw"},1,1,0,{"$f":"'CUSTOS UNIT. SICRO e SINAPI'!F6","v":314.32130000000001},{"$f":"'CUSTOS UNIT. SICRO e SINAPI'!G6","v":95.732900000000001},null,{"$f":"(((D102*F102)+(E102*G102))*C102)","v":314.32130000000001}]
[{"$nulls":6},"Custo horário total de equipamentos",null,{"$f":"SUM(I102)","v":314.32130000000001}]
["B - MÃO DE OBRA",null,"Quantidade","Unidade",null,"Custo Horário","Custo Horário Total"]
[null,null,"Custo horário total de mão de obra"]
[null,null,"Custo horário total de execução",{"$nulls":5},{"$f":"I103","v":314.32130000000001}]
[null,null,"Custo unitário de execução",{"$nulls":5},{"$f":"I106/H98","v":0.90166752725186461}]
[{"$nulls":6},"Custo do FIC",null,{"$f":"ROUNDUP(I107*H97,4)","v":1.29E-2}]
[{"$nulls":6},"Custo do FIT",null,"-"]
["C - MATERIAL",null,"Quantidade","Unidade",null,"Preço Unitário","Custo Unitário"]
[null,null,"Custo unitário total de material"]
["D - ATIVIDADES AUXILIARES",null,"Quantidade","Unidade",null,"Custo Unitário","Custo Unitário"]
[null,null,"Custo total de atividades auxiliares"]
[{"$nulls":6},"Subtotal",null,{"$f":"SUM(I107:I108)","v":0.91456752725186463}]
["E - TEMPO FIXO",null,"Código","Quantidade","Unidade",null,"Custo Unitário","Custo Unitário"]
[null,null,"Custo unitário total de tempo fixo"]
["F - MOMENTO DE TRANSPORTE",null,"Quantidade","Unidade","DMT",null,null,null,"Custo Unitário"]
[{"$nulls":4},"LN","RP","P"]
[null,null,"Custo unitário total de transporte"]
[{"$nulls":4},"Custo unitário direto total",null,null,null,{"$f":"TRUNC(I114,2)","v":0.91}]
[]
["CGCIT",{"$nulls":7},"DNIT"]
["SISTEMA DE CUSTOS REFERENCIAIS DE OBRAS - SICRO",null,null,"Bahia",null,null,"FIC"]
["Custo Unitário de Referência",null,null,"Abril de 2025",null,null,"Produção da equipe ",470.61,"tkm"]
["SICRO 5901640","Transporte com caminhão basculante com caçamba estanque com capacidade de 14 m³ - rodovia pavimentada",{"$nulls":5},"Valores em reais (R$)"]
["A - EQUIPAMENTOS",null,"Quantidade","Utilização",null,"Custo Horário",null,null,"Custo"]
[null,null,null,"Operativa","Improdutiva","Produtivo","Improdutivo",null,"Horário Total"]
[{"$f":"'CUSTOS UNIT. SICRO e SINAPI'!D6","v":"E9575"},{"$f":"'CUSTOS UNIT. SICRO e SINAPI'!A6","v":"Caminhão basculante com caçamba estanque com capacidade de 14 m³ - 210 Kw"},1,1,0,{"$f":"'CUSTOS UNIT. SICRO e SINAPI'!F6","v":314.32130000000001},{"$f":"'CUSTOS UNIT. SICRO e SINAPI'!G6","v":95.732900000000001},null,{"$f":"(((D128*F128)+(E128*G128))*C128)","v":314.32130000000001}]
[{"$nulls":6},"Custo horário total de equipamentos",null,{"$f":"SUM(I128)","v":314.32130000000001}]
["B - MÃO DE OBRA",null,"Quantidade","Unidade",null,"Custo Horário","Custo Horário Total"]
[null,null,"Custo horário total de mão de obra"]
[null,null,"Custo horário total de execução",{"$nulls":5},{"$f":"I129","v":314.32130000000001}]
[null,null,"Custo unitário de execução",{"$nulls":5},{"$f":"I132/H124","v":0.66790187203841822}]
[{"$nulls":6},"Custo do FIC",null,{"$f":"ROUNDUP(I133*H123,4)","v":0}]
[{"$nulls":6},"Custo do FIT",null,"-"]
["C - MATERIAL",null,"Quantidade","Unidade",null,"Preço Unitário","Custo Unitário"]
[null,null,"Custo unitário total de material"]
["D - ATIVIDADES AUXILIARES",null,"Quantidade","Unidade",null,"Custo Unitário","Custo Unitário"]
[null,null,"Custo total de atividades auxiliares"]
[{"$nulls":6},"Subtotal",null,{"$f":"SUM(I133:I134)","v":0.66790187203841822}]
["E - TEMPO FIXO",null,"Código","Quantidade","Unidade",null,"Custo Unitário","Custo Unitário"]
[null,null,"Custo unitário total de tempo fixo"]
["F - MOMENTO DE TRANSPORTE",null,"Quantidade","Unidade","DMT",null,null,null,"Custo Unitário"]
[{"$nulls":4},"LN","RP","P"]
[null,null,"Custo unitário total de transporte"]
[{"$nulls":4},"Custo unitário direto total",null,null,null,{"$f":"TRUNC(I140,2)","v":0.66}]
[]
["CGCIT",{"$nulls":7},"DNIT"]
["SISTEMA DE CUSTOS REFERENCIAIS DE OBRAS - SICRO",null,null,"Bahia",null,null,"FIC",1.4250000000000001E-2]
["Custo Unitário de Referência",null,null,"Abril de 2025",null,null,"Produção da equipe ",669.81,"tkm"]
["SICRO 5914639","Transporte com cavalo mecânico com semirreboque com capacidade de 32 t - rodovia em revestimento primário",{"$nulls":5},"Valores em reais (R$)"]
["A - EQUIPAMENTOS",null,"Quantidade","Utilização",null,"Custo Horário",null,null,"Custo"]
[null,null,null,"Operativa","Improdutiva","Produtivo","Improdutivo",null,"Horário Total"]
[{"$f":"'CUSTOS UNIT. SICRO e SINAPI'!D9","v":"E9666"},{"$f":"'CUSTOS UNIT. SICRO e SINAPI'!A9","v":"Cavalo mecânico com semirreboque com capacidade de 32 t - 302 kW"},1,1,0,{"$f":"'CUSTOS UNIT. SICRO e SINAPI'!F9","v":458.23970000000003},{"$f":"'CUSTOS UNIT. SICRO e SINAPI'!G9","v":140.5607},null,{"$f":"(((D154*F154)+(E154*G154))*C154)","v":458.23970000000003}]
[{"$nulls":6},"Custo horário total de equipamentos",null,{"$f":"SUM(I154)","v":458.23970000000003}]
["B - MÃO DE OBRA",null,"Quantidade","Unidade",null,"Custo Horário","Custo Horário Total"]
[null,null,"Custo horário total de mão de obra"]
[null,null,"Custo horário total de execução",{"$nulls":5},{"$f":"I155","v":458.23970000000003}]
[null,null,"Custo unitário de execução",{"$nulls":5},{"$f":"I158/H150","v":0.68413385885549638}]
[{"$nulls":6},"Custo do FIC",null,{"$f":"ROUNDDOWN(I159*H149,4)","v":9.7000000000000003E-3}]
[{"$nulls":6},"Custo do FIT",null,"-"]
["C - MATERIAL",null,"Quantidade","Unidade",null,"Preço Unitário","Custo Unitário"]
[null,null,"Custo unitário total de material"]
["D - ATIVIDADES AUXILIARES",null,"Quantidade","Unidade",null,"Custo Unitário","Custo Unitário"]
[null,null,"Custo total de atividades auxiliares"]
[{"$nulls":6},"Subtotal",null,{"$f":"SUM(I159,I160)","v":0.69383385885549642}]
["E - TEMPO FIXO",null,"Código","Quantidade","Unidade",null,"Custo Unitário","Custo Unitário"]
[null,null,"Custo unitário total de tempo fixo"]
["F - MOMENTO DE TRANSPORTE",null,"Quantidade","Unidade","DMT",null,null,null,"Custo Unitário"]
[{"$nulls":4},"LN","RP","P"]
[null,null,"Custo unitário total de transporte"]
[{"$nulls":4},"Custo unitário direto total",null,null,null,{"$f":"TRUNC(I166,2)","v":0.69}]
[]
["CGCIT",{"$nulls":7},"DNIT"]
["SISTEMA DE CUSTOS REFERENCIAIS DE OBRAS - SICRO",null,null,"Bahia",null,null,"FIC",0]
["Custo Unitário de Referência",null,null,"Abril de 2025",null,null,"Produção da equipe ",803.77,"tkm"]
["SICRO 5914640","Transporte com cavalo mecânico com semirreboque com capacidade de 32 t - rodovia pavimentada",{"$nulls":5},"Valores em reais (R$)"]
["A - EQUIPAMENTOS",null,"Quantidade","Utilização",null,"Custo Horário",null,null,"Custo"]
[null,null,null,"Operativa","Improdutiva","Produtivo","Improdutivo",null,"Horário Total"]
[{"$f":"'CUSTOS UNIT. SICRO e SINAPI'!D9","v":"E9666"},{"$f":"'CUSTOS UNIT. SICRO e SINAPI'!A9","v":"Cavalo mecânico com semirreboque com capacidade de 32 t - 302 kW"},1,1,0,{"$f":"'CUSTOS UNIT. SICRO e SINAPI'!F9","v":458.23970000000003},{"$f":"'CUSTOS UNIT. SICRO e SINAPI'!G9","v":140.5607},null,{"$f":"(((D180*F180)+(E180*G180))*C180)","v":458.23970000000003}]
[{"$nulls":6},"Custo horário total de equipamentos",null,{"$f":"SUM(I180)","v":458.23970000000003}]
["B - MÃO DE OBRA",null,"Quantidade","Unidade",null,"Custo Horário","Custo Horário Total"]
[null,null,"Custo horário total de mão de obra"]
[null,null,"Custo horário total de execução",{"$nulls":5},{"$f":"I181","v":458.23970000000003}]
[null,null,"Custo unitário de execução",{"$nulls":5},{"$f":"I184/H176","v":0.57011296763999653}]
[{"$nulls":6},"Custo do FIC",null,{"$f":"ROUNDUP(I185*H175,4)","v":0}]
[{"$nulls":6},"Custo do FIT",null,"-"]
["C - MATERIAL",null,"Quantidade","Unidade",null,"Preço Unitário","Custo Unitário"]
[null,null,"Custo unitário total de material"]
["D - ATIVIDADES AUXILIARES",null,"Quantidade","Unidade",null,"Custo Unitário","Custo Unitário"]
[null,null,"Custo total de atividades auxiliares"]
[{"$nulls":6},"Subtotal",null,{"$f":"SUM(I185,I186)","v":0.57011296763999653}]
["E - TEMPO FIXO",null,"Código","Quantidade","Unidade",null,"Custo Unitário","Custo Unitário"]
[null,null,"Custo unitário total de tempo fixo"]
["F - MOMENTO DE TRANSPORTE",null,"Quantidade","Unidade","DMT",null,null,null,"Custo Unitário"]
[{"$nulls":4},"LN","RP","P"]
[null,null,"Custo unitário total de transporte"]
[{"$nulls":4},"Custo unitário direto total",null,null,null,{"$f":"TRUNC(I192,2)","v":0.56999999999999995}]
[]
["CGCIT",{"$nulls":7},"DNIT"]
["SISTEMA DE CUSTOS REFERENCIAIS DE OBRAS - SICRO",null,null,"Bahia",null,null,"FIC",1.4250000000000001E-2]
["Custo Unitário de Referência",null,null,"Abril de 2025",null,null,"Produção da equipe ",672.8,"m²"]
["SICRO 4011209","Regularização do subleito - 100% Proctor intermediário",{"$nulls":5},"Valores em reais (R$)"]
["A - EQUIPAMENTOS",null,"Quantidade","Utilização",null,"Custo Horário",null,null,"Custo"]
[null,null,null,"Operativa","Improdutiva","Produtivo","Improdutivo",null,"Horário Total"]
[{"$f":"'CUSTOS UNIT. SICRO e SINAPI'!D8","v":"E9571"},{"$f":"'CUSTOS UNIT. SICRO e SINAPI'!A8","v":"Caminhão tanque com capacidade de 10.000 l - 188 kW"},1,0.61,0.39,{"$f":"'CUSTOS UNIT. SICRO e SINAPI'!F8","v":331.9819},{"$f":"'CUSTOS UNIT. SICRO e SINAPI'!G8","v":87.660300000000007},null,{"$f":"(((D206*F206)+(E206*G206))*C206)","v":236.69647600000002}]
[{"$f":"'CUSTOS UNIT. SICRO e SINAPI'!D14","v":"E9518"},{"$f":"'CUSTOS UNIT. SICRO e SINAPI'!A14","v":"Grade de 24 discos rebocável de D = 60 cm (24\")"},1,0.41,0.59,{"$f":"'CUSTOS UNIT. SICRO e SINAPI'!F14","v":5.0244999999999997},{"$f":"'CUSTOS UNIT. SICRO e SINAPI'!G14","v":3.4990000000000001},null,4.1244549999999993]
[{"$f":"'CUSTOS UNIT. SICRO e SINAPI'!D15","v":"E9524"},{"$f":"'CUSTOS UNIT. SICRO e SINAPI'!A15","v":"Motoniveladora - 93 kW"},1,0.43,0.56999999999999995,{"$f":"'CUSTOS UNIT. SICRO e SINAPI'!F15","v":287.66609999999997},{"$f":"'CUSTOS UNIT. SICRO e SINAPI'!G15","v":128.1841},null,196.76135999999997]
[{"$f":"'CUSTOS UNIT. SICRO e SINAPI'!D17","v":"E9762"},{"$f":"'CUSTOS UNIT. SICRO e SINAPI'!A17","v":"Rolo compactador de pneus autopropelido de 27 t - 85 kW"},1,0.96,0.04,{"$f":"'CUSTOS UNIT. SICRO e SINAPI'!F17","v":262.6866},{"$f":"'CUSTOS UNIT. SICRO e SINAPI'!G17","v":131.0659},null,257.42177199999998]
[{"$f":"'CUSTOS UNIT. SICRO e SINAPI'!D18","v":"E9685"},{"$f":"'CUSTOS UNIT. SICRO e SINAPI'!A18","v":"Rolo compactador pé de carneiro vibratório autopropelido por pneus de 11,6 t - 82 kW"},1,1,0,{"$f":"'CUSTOS UNIT. SICRO e SINAPI'!F18","v":231.6833},{"$f":"'CUSTOS UNIT. SICRO e SINAPI'!G18","v":107.4007},null,231.6833]
[{"$f":"'CUSTOS UNIT. SICRO e SINAPI'!D19","v":"E9577"},{"$f":"'CUSTOS UNIT. SICRO e SINAPI'!A19","v":"Trator agrícola sobre pneus - 77 kW"},1,0.41,0.59,{"$f":"'CUSTOS UNIT. SICRO e SINAPI'!F19","v":159.0566},{"$f":"'CUSTOS UNIT. SICRO e SINAPI'!G19","v":62.311799999999998},null,{"$f":"((D211*F211)+(E211*G211)*C211)","v":101.97716800000001}]
[{"$nulls":6},"Custo horário total de equipamentos",null,{"$f":"ROUNDUP(I206+I207+I208+I209+I210+I211,4)","v":1028.6646000000001}]
["B - MÃO DE OBRA",null,"Quantidade","Unidade",null,"Custo Horário","Custo Horário Total"]
[{"$f":"'CUSTOS UNIT. SICRO e SINAPI'!D34","v":"SINAPI 88316"},{"$f":"'CUSTOS UNIT. SICRO e SINAPI'!A34","v":"SERVENTE COM ENCARGOS COMPLEMENTARES"},1,"h",null,{"$f":"'CUSTOS UNIT. SICRO e SINAPI'!F34","v":24.37},null,null,{"$f":"C214*F214","v":24.37}]
[null,null,"Custo horário total de mão de obra",{"$nulls":5},{"$f":"SUM(I214)","v":24.37}]
[null,null,"Custo horário total de execução",{"$nulls":5},{"$f":"SUM(I212,I215)","v":1053.0346}]
[null,null,"Custo unitário de execução",{"$nulls":5},{"$f":"I216/H202","v":1.5651524970273485}]
[{"$nulls":6},"Custo do FIC",null,{"$f":"ROUNDDOWN(I217*H201,4)","v":2.23E-2}]
[{"$nulls":6},"Custo do FIT",null,"-"]
["C - MATERIAL",null,"Quantidade","Unidade",null,"Preço Unitário","Custo Unitário"]
[null,null,"Custo unitário total de material"]
["D - ATIVIDADES AUXILIARES",null,"Quantidade","Unidade",null,"Custo Unitário","Custo Unitário"]
[null,null,"Custo total de atividades auxiliares"]
[{"$nulls":6},"Subtotal",null,{"$f":"SUM(I217:I218)","v":1.5874524970273485}]
["E - TEMPO FIXO",null,"Código","Quantidade","Unidade",null,"Custo Unitário","Custo Unitário"]
[null,null,"Custo unitário total de tempo fixo"]
["F - MOMENTO DE TRANSPORTE",null,"Quantidade","Unidade","DMT",null,null,null,"Custo Unitário"]
[{"$nulls":4},"LN","RP","P"]
[null,null,"Custo unitário total de transporte"]
[{"$nulls":4},"Custo unitário direto total",null,null,null,{"$f":"TRUNC(I224,2)","v":1.58}]

{"sheet":"COMPOSIÇÕES SINAPI","index":4,"n_rows":27,"n_cols":8,"rows_kept":27,"cut":false,"hidden":false,"merged":[[26,0,26,3],[26,4,26,6],[0,3,0,7],[1,3,1,7],[2,3,2,7],[4,0,4,7],[5,0,5,7],[6,0,7,7],[8,1,8,3],[8,5,8,7],[13,0,13,3],[13,4,13,6]]}
[null,null,null,"MINISTÉRIO DA INTEGRAÇÃO E DO DESENVOLVIMENTO REGIONAL"]
[null,null,null,"COMPANHIA DE DESENVOLVIMENTO DOS VALES DO SÃO FRANCISCO E DO PARNAÍBA"]
[null,null,null,"2ª SUPERINTENDÊNCIA REGIONAL"]
[]
["ANEXO 4 - PLANILHA COMPOSIÇÕES DE CUSTOS - SINAPI BAHIA JULHO DE 2025"]
[]
["OBJETO: CONTRATAÇÃO DE OBRAS E SERVIÇOS DE ENGENHARIA PARA REGULARIZAÇÃO DE SUBLEITO E EXECUÇÃO DE REVESTIMENTO PRIMÁRIO NA ESTRADA DA IPUEIRA, MUNICÍPIO DE SERRA DO RAMALHO, NA ÁREA DE ABRANGÊNCIA DA 2ª SUPERINTENDÊNCIA REGIONAL DA CODEVASF, NO ESTADO DA BAHIA."]
[]
["BASE:","SINAPI BAHIA - JULHO DE 2025",null,null,null,"NÃO DESONERADO"]
[]
["CPU-01","CODEVASF","SEM","ADMINISTRAÇÃO LOCAL","%","QUANTITATIVO","CUSTO UNITÁRIO","CUSTO TOTAL (R$)"]
["COMPOSICAO","SINAPI",{"$f":"'CUSTOS UNIT. SICRO e SINAPI'!D26","v":"SINAPI 90776"},{"$f":"'CUSTOS UNIT. SICRO e SINAPI'!A26","v":"ENCARREGADO GERAL COM ENCARGOS COMPLEMENTARES"},{"$f":"'CUSTOS UNIT. SICRO e SINAPI'!E26","v":"H"},{"$f":"8*24","v":192},{"$f":"'CUSTOS UNIT. SICRO e SINAPI'!F26","v":40.869999999999997},{"$f":"F12*G12","v":7847.0399999999991}]
["COMPOSICAO","SINAPI",{"$f":"'CUSTOS UNIT. SICRO e SINAPI'!D27","v":"SINAPI 90777"},{"$f":"'CUSTOS UNIT. SICRO e SINAPI'!A27","v":"ENGENHEIRO CIVIL DE OBRA JUNIOR COM ENCARGOS COMPLEMENTARES"},{"$f":"'CUSTOS UNIT. SICRO e SINAPI'!E27","v":"H"},{"$f":"8*6","v":48},{"$f":"'CUSTOS UNIT. SICRO e SINAPI'!F27","v":130.58000000000001},6267.84]
[{"$nulls":4},"CUSTO TOTAL",null,null,{"$f":"TRUNC(SUM(H12:H13),2)","v":14114.88}]
[]
["CPU-02","CODEVASF","SEM","PLACA DE OBRA EM CHAPA DE AÇO GALVANIZADO (1,80 M * 3,60 M)","m²","QUANTITATIVO","CUSTO UNITÁRIO","CUSTO TOTAL (R$)"]
["INSUMO","SINAPI",{"$f":"'CUSTOS UNIT. SICRO e SINAPI'!D32","v":"SINAPI 5075"},{"$f":"'CUSTOS UNIT. SICRO e SINAPI'!A32","v":"PREGO DE ACO POLIDO COM CABECA 18 X 30 (2 3/4 X 10)"},{"$f":"'CUSTOS UNIT. SICRO e SINAPI'!E32","v":"KG"},0.11,{"$f":"'CUSTOS UNIT. SICRO e SINAPI'!F32","v":17.34},1.9074]
["INSUMO","SINAPI",{"$f":"'CUSTOS UNIT. SICRO e SINAPI'!D31","v":"SINAPI 4491"},{"$f":"'CUSTOS UNIT. SICRO e SINAPI'!A31","v":"PONTALETE *7,5 X 7,5* CM EM PINUS, MISTA OU EQUIVALENTE DA REGIAO - BRUTA"},{"$f":"'CUSTOS UNIT. SICRO e SINAPI'!E31","v":"M"},4,{"$f":"'CUSTOS UNIT. SICRO e SINAPI'!F31","v":9.59},38.36]
["INSUMO","SINAPI",{"$f":"'CUSTOS UNIT. SICRO e SINAPI'!D33","v":"SINAPI 4417"},{"$f":"'CUSTOS UNIT. SICRO e SINAPI'!A33","v":"SARRAFO NAO APARELHADO *2,5 X 7* CM, EM MACARANDUBA, ANGELIM OU EQUIVALENTE DA REGIAO - BRUTA"},{"$f":"'CUSTOS UNIT. SICRO e SINAPI'!E33","v":"M"},1,{"$f":"'CUSTOS UNIT. SICRO e SINAPI'!F33","v":7.24},7.24]
["INSUMO","SINAPI",{"$f":"'CUSTOS UNIT. SICRO e SINAPI'!D30","v":"SINAPI 4813"},{"$f":"'CUSTOS UNIT. SICRO e SINAPI'!A30","v":"PLACA DE OBRA (PARA CONSTRUCAO CIVIL) EM CHAPA GALVANIZADA *N. 22*, ADESIVADA, DE *2,4 X 1,2* M (SEM POSTES PARA FIXACAO)"},{"$f":"'CUSTOS UNIT. SICRO e SINAPI'!E30","v":"M²"},1,{"$f":"'CUSTOS UNIT. SICRO e SINAPI'!F30","v":377.5},377.5]
["INSUMO","SINAPI",{"$f":"'CUSTOS UNIT. SICRO e SINAPI'!D21","v":"SINAPI 370"},{"$f":"'CUSTOS UNIT. SICRO e SINAPI'!A21","v":"AREIA MEDIA - POSTO JAZIDA/FORNECEDOR (RETIRADO NA JAZIDA, SEM TRANSPORTE)"},{"$f":"'CUSTOS UNIT. SICRO e SINAPI'!E21","v":"M³"},4.8999999999999998E-3,{"$f":"'CUSTOS UNIT. SICRO e SINAPI'!F21","v":139.91},0.68555899999999992]
["INSUMO","SINAPI",{"$f":"'CUSTOS UNIT. SICRO e SINAPI'!D25","v":"SINAPI 1379"},{"$f":"'CUSTOS UNIT. SICRO e SINAPI'!A25","v":"CIMENTO PORTLAND COMPOSTO CP II-32 "},{"$f":"'CUSTOS UNIT. SICRO e SINAPI'!E25","v":"KG"},1.5,{"$f":"'CUSTOS UNIT. SICRO e SINAPI'!F25","v":0.8},1.2000000000000002]
["INSUMO","SINAPI",{"$f":"'CUSTOS UNIT. SICRO e SINAPI'!D29","v":"SINAPI 4718"},{"$f":"'CUSTOS UNIT. SICRO e SINAPI'!A29","v":"PEDRA BRITADA N. 2 (19 A 38 MM) POSTO PEDREIRA/FORNECEDOR, SEM FRETE"},{"$f":"'CUSTOS UNIT. SICRO e SINAPI'!E29","v":"M³"},9.7999999999999997E-3,{"$f":"'CUSTOS UNIT. SICRO e SINAPI'!F29","v":116.7},1.1436599999999999]
["COMPOSIÇÃO","SINAPI",{"$f":"'CUSTOS UNIT. SICRO e SINAPI'!D22","v":"SINAPI 87445"},{"$f":"'CUSTOS UNIT. SICRO e SINAPI'!A22","v":"BETONEIRA CAPACIDADE NOMINAL 400 L, CAPACIDADE DE MISTURA 310 L, MOTOR A DIESEL POTÊNCIA 5,0 HP, SEM CARREGADOR - CHP DIURNO. AF_06/2014"},{"$f":"'CUSTOS UNIT. SICRO e SINAPI'!E22","v":"H"},6.4999999999999997E-3,{"$f":"'CUSTOS UNIT. SICRO e SINAPI'!F22","v":5.34},3.4709999999999998E-2]
["COMPOSIÇÃO","SINAPI",{"$f":"'CUSTOS UNIT. SICRO e SINAPI'!D24","v":"SINAPI 88262"},{"$f":"'CUSTOS UNIT. SICRO e SINAPI'!A24","v":"CARPINTEIRO DE FORMAS COM ENCARGOS COMPLEMENTARES"},{"$f":"'CUSTOS UNIT. SICRO e SINAPI'!E24","v":"H"},1,{"$f":"'CUSTOS UNIT. SICRO e SINAPI'!F24","v":33.07},33.07]
["COMPOSIÇÃO","SINAPI",{"$f":"'CUSTOS UNIT. SICRO e SINAPI'!D34","v":"SINAPI 88316"},{"$f":"'CUSTOS UNIT. SICRO e SINAPI'!A34","v":"SERVENTE COM ENCARGOS COMPLEMENTARES"},{"$f":"'CUSTOS UNIT. SICRO e SINAPI'!E34","v":"H"},2.06,{"$f":"'CUSTOS UNIT. SICRO e SINAPI'!F34","v":24.37},50.202200000000005]
[{"$nulls":4},"CUSTO TOTAL",null,null,{"$f":"TRUNC(SUM(H17:H26),2)","v":511.34}]

{"sheet":"CUSTOS UNIT. SICRO e SINAPI","index":5,"n_rows":34,"n_cols":7,"rows_kept":34,"cut":false,"hidden":false,"merged":[[0,0,0,4],[0,5,0,6],[2,0,2,6]]}
["ANEXO 4 - CUSTOS UNITÁRIOS DE INSUMOS E SERVIÇOS PARA COMPOSIÇÕES DE PREÇOS - SICRO BAHIA E SINAPI BAHIA"]
[]
["OBJETO: CONTRATAÇÃO DE OBRAS E SERVIÇOS DE ENGENHARIA PARA REGULARIZAÇÃO DE SUBLEITO E EXECUÇÃO DE REVESTIMENTO PRIMÁRIO NA ESTRADA DA IPUEIRA, MUNICÍPIO DE SERRA DO RAMALHO, NA ÁREA DE ABRANGÊNCIA DA 2ª SUPERINTENDÊNCIA REGIONAL DA CODEVASF, NO ESTADO DA BAHIA."]
[]
["ESPECIFICAÇÃO DO ITEM DA COMPOSIÇÃO - SICRO BAHIA","FONTE","MÊS/ANO DE REFERÊNCIA","CÓDIGO","UNIDADE","CUSTO UNITÁRIO PRODUTIVO","CUSTO UNITÁRIO IMPRODUTIVO"]
["Caminhão basculante com caçamba estanque com capacidade de 14 m³ - 210 Kw","SICRO BAHIA","ABRIL/2025","E9575","HORA",314.32130000000001,95.732900000000001]
["Caminhão carroceria com capacidade de 5 t - 120 kW","SICRO BAHIA","ABRIL/2025","E9687","HORA",157.5975,64.074299999999994]
["Caminhão tanque com capacidade de 10.000 l - 188 kW","SICRO BAHIA","ABRIL/2025","E9571","HORA",331.9819,87.660300000000007]
["Cavalo mecânico com semirreboque com capacidade de 32 t - 302 kW","SICRO BAHIA","ABRIL/2025","E9666","HORA",458.23970000000003,140.5607]
["Escavação e carga de material de jazida com escavadeira hidráulica de 1,56 m³","SICRO BAHIA","ABRIL/2025",4016096,"M³",1.48]
["Escavação e carga de material de jazida com escavadeira hidráulica de 1,56 m³ - Caminhão basculante 10 m³","SICRO BAHIA","ABRIL/2025",4016096,"T",1.82]
["Escavação manual em material de 1ª categoria na profundidade de até 1 m","SICRO BAHIA","ABRIL/2025",4805750,"M³",45.71]
["Escavadeira hidráulica sobre esteiras com caçamba com capacidade de 1,56 m³ - 118 Kw","SICRO BAHIA","ABRIL/2025","E9515","HORA",312.41210000000001,145.58539999999999]
["Grade de 24 discos rebocável de D = 60 cm (24\")","SICRO BAHIA","ABRIL/2025","E9518","HORA",5.0244999999999997,3.4990000000000001]
["Motoniveladora - 93 kW","SICRO BAHIA","ABRIL/2025","E9524","HORA",287.66609999999997,128.1841]
["Retroescavadeira de pneus com capacidade de 0,76 m³ e da retroescavadeira de 0,29 m³- 58 Kw","SICRO BAHIA","ABRIL/2025","E9526","HORA",157.8623,83.055999999999997]
["Rolo compactador de pneus autopropelido de 27 t - 85 kW","SICRO BAHIA","ABRIL/2025","E9762","HORA",262.6866,131.0659]
["Rolo compactador pé de carneiro vibratório autopropelido por pneus de 11,6 t - 82 kW","SICRO BAHIA","ABRIL/2025","E9685","HORA",231.6833,107.4007]
["Trator agrícola sobre pneus - 77 kW","SICRO BAHIA","ABRIL/2025","E9577","HORA",159.0566,62.311799999999998]
["ESPECIFICAÇÃO DO ITEM DA COMPOSIÇÃO - SINAPI BAHIA","FONTE","MÊS/ANO DE REFERÊNCIA","CÓDIGO","UNIDADE","CUSTO UNITÁRIO PRODUTIVO","VALOR UNITÁRIO IMPRODUTIVO"]
["AREIA MEDIA - POSTO JAZIDA/FORNECEDOR (RETIRADO NA JAZIDA, SEM TRANSPORTE)","SINAPI BAHIA","JULHO/2025","SINAPI 370","M³",139.91]
["BETONEIRA CAPACIDADE NOMINAL 400 L, CAPACIDADE DE MISTURA 310 L, MOTOR A DIESEL POTÊNCIA 5,0 HP, SEM CARREGADOR - CHP DIURNO. AF_06/2014","SINAPI BAHIA","JULHO/2025","SINAPI 87445","H",5.34]
["CAMINHONETE CABINE SIMPLES COM MOTOR 1.6 FLEX, CÂMBIO MANUAL, POTÊNCIA 101/104 CV, 2 PORTAS - MATERIAIS NA OPERAÇÃO. AF_11/2015","SINAPI BAHIA","JULHO/2025","SINAPI 92144","H",41.21]
["CARPINTEIRO DE FORMAS COM ENCARGOS COMPLEMENTARES","SINAPI BAHIA","JULHO/2025","SINAPI 88262","H",33.07]
["CIMENTO PORTLAND COMPOSTO CP II-32 ","SINAPI BAHIA","JULHO/2025","SINAPI 1379","KG",0.8]
["ENCARREGADO GERAL COM ENCARGOS COMPLEMENTARES","SINAPI BAHIA","JULHO/2025","SINAPI 90776","H",40.869999999999997]
["ENGENHEIRO CIVIL DE OBRA JUNIOR COM ENCARGOS COMPLEMENTARES","SINAPI BAHIA","JULHO/2025","SINAPI 90777","H",130.58000000000001]
["OLEO DIESEL COMBUSTIVEL COMUM METROPOLITANO S-10 OU S-500","SINAPI BAHIA","JULHO/2025","SINAPI 4221","L",5.91]
["PEDRA BRITADA N. 2 (19 A 38 MM) POSTO PEDREIRA/FORNECEDOR, SEM FRETE","SINAPI BAHIA","JULHO/2025","SINAPI 4718","M³",116.7]
["PLACA DE OBRA (PARA CONSTRUCAO CIVIL) EM CHAPA GALVANIZADA *N. 22*, ADESIVADA, DE *2,4 X 1,2* M (SEM POSTES PARA FIXACAO)","SINAPI BAHIA","JULHO/2025","SINAPI 4813","M²",377.5]
["PONTALETE *7,5 X 7,5* CM EM PINUS, MISTA OU EQUIVALENTE DA REGIAO - BRUTA","SINAPI BAHIA","JULHO/2025","SINAPI 4491","M",9.59]
["PREGO DE ACO POLIDO COM CABECA 18 X 30 (2 3/4 X 10)","SINAPI BAHIA","JULHO/2025","SINAPI 5075","KG",17.34]
["SARRAFO NAO APARELHADO *2,5 X 7* CM, EM MACARANDUBA, ANGELIM OU EQUIVALENTE DA REGIAO - BRUTA","SINAPI BAHIA","JULHO/2025","SINAPI 4417","M",7.24]
["SERVENTE COM ENCARGOS COMPLEMENTARES","SINAPI BAHIA","JULHO/2025","SINAPI 88316","H",24.37]

{"sheet":"Mob e Desmob OBRA asfalto","index":6,"n_rows":27,"n_cols":9,"rows_kept":27,"cut":false,"hidden":false,"merged":[[26,5,26,6],[6,0,7,15],[0,2,0,15],[1,2,1,15],[2,2,2,15],[4,0,4,15],[9,2,9,6]]}
[null,null,"MINISTÉRIO DO DESENVOLVIMENTO REGIONAL - MDR"]
[null,null,"COMPANHIA DE DESENVOLVIMENTO DOS VALES DO SÃO FRANCISCO E DO PARNAÍBA"]
[null,null,"2ª SUPERINTENDÊNCIA REGIONAL - BOM JESUS DA LAPA-BA"]
[]
["OBJETO: CONTRATAÇÃO DE OBRAS E SERVIÇOS DE ENGENHARIA PARA REGULARIZAÇÃO DE SUBLEITO E EXECUÇÃO DE REVESTIMENTO PRIMÁRIO NA ESTRADA DA IPUEIRA, MUNICÍPIO DE SERRA DO RAMALHO, NA ÁREA DE ABRANGÊNCIA DA 2ª SUPERINTENDÊNCIA REGIONAL DA CODEVASF, NO ESTADO DA BAHIA."]
[]
["ANEXO 4 - MEMÓRIA DE CÁLCULO DOS MOMENTOS DE TRANSPORTE PARA MOBILIZAÇÃO E DESMOBILIZAÇÃO"]
[]
[]
["Cidade de Origem:",null,"Bom Jesus da Lapa-BA"]
[]
["Destino:",null,"Comunidade Ipueira - Serra do Ramalho-BA"]
[]
["Distância Total considerada:",null,8," km de via asfaltada"]
[]
["Peso das máquinas:",null,null,null,"Motoniveladora 93 KW",null,null,13.03,"ton"]
[{"$nulls":4},"Trator de pneus 77 kw com grade niveladora",null,null,3.4,"ton"]
[{"$nulls":4},"Rolo compactador autopropelido 27 ton",null,null,27,"ton"]
[{"$nulls":4},"Rolo compactador pé de carneiro",null,null,22.5,"ton"]
[{"$nulls":4},"Retroescavadeira de pneus 58 kw",null,null,7.86,"ton"]
[]
["Peso dos materiais:",null,null,null,"Materiais",null,null,3,"ton"]
[]
[{"$nulls":4},"Total",null,null,{"$f":"SUM(H16:H22)","v":76.790000000000006}," ton"]
[]
[]
[{"$f":"\"Momento de transporte  =  \"&TEXT(H24,\"0,00\")&\"  x  \"&TEXT(C14,\"0,00\")&\"            =>\"","v":"Momento de transporte  =  76,79  x  8,00            =>"},{"$nulls":4},{"$f":"TRUNC(C14*H24,2)","v":614.32000000000005},null," t x km"]

{"sheet":"Mob e Desmob OBRA cascalho","index":7,"n_rows":27,"n_cols":9,"rows_kept":27,"cut":false,"hidden":false,"merged":[[26,5,26,6],[0,2,0,15],[1,2,1,15],[2,2,2,15],[4,0,4,15],[6,0,7,15],[9,2,9,6]]}
[null,null,"MINISTÉRIO DO DESENVOLVIMENTO REGIONAL - MDR"]
[null,null,"COMPANHIA DE DESENVOLVIMENTO DOS VALES DO SÃO FRANCISCO E DO PARNAÍBA"]
[null,null,"2ª SUPERINTENDÊNCIA REGIONAL - BOM JESUS DA LAPA-BA"]
[]
["OBJETO: CONTRATAÇÃO DE OBRAS E SERVIÇOS DE ENGENHARIA PARA REGULARIZAÇÃO DE SUBLEITO E EXECUÇÃO DE REVESTIMENTO PRIMÁRIO NA ESTRADA DA IPUEIRA, MUNICÍPIO DE SERRA DO RAMALHO, NA ÁREA DE ABRANGÊNCIA DA 2ª SUPERINTENDÊNCIA REGIONAL DA CODEVASF, NO ESTADO DA BAHIA."]
[]
["ANEXO 4 - MEMÓRIA DE CÁLCULO DOS MOMENTOS DE TRANSPORTE PARA MOBILIZAÇÃO E DESMOBILIZAÇÃO"]
[]
[]
["Cidade de Origem:",null,"Bom Jesus da Lapa-BA"]
[]
["Destino:",null,"Comunidade Ipueira - Serra do Ramalho-BA"]
[]
["Distância Total considerada:",null,6," km de via em revestimento primário"]
[]
["Peso das máquinas:",null,null,null,"Motoniveladora 93 KW",null,null,13.03,"ton"]
[{"$nulls":4},"Trator de pneus 77 kw com grade niveladora",null,null,3.4,"ton"]
[{"$nulls":4},"Rolo compactador autopropelido 27 ton",null,null,27,"ton"]
[{"$nulls":4},"Rolo compactador pé de carneiro",null,null,22.5,"ton"]
[{"$nulls":4},"Retroescavadeira de pneus 58 kw",null,null,7.86,"ton"]
[]
["Peso dos materiais:",null,null,null,"Materiais",null,null,3,"ton"]
[]
[{"$nulls":4},"Total",null,null,{"$f":"SUM(H16:H22)","v":76.790000000000006}," ton"]
[]
[]
[{"$f":"\"Momento de transporte  =  \"&TEXT(H24,\"0,00\")&\"  x  \"&TEXT(C14,\"0,00\")&\"            =>\"","v":"Momento de transporte  =  76,79  x  6,00            =>"},{"$nulls":4},{"$f":"TRUNC(C14*H24,2)","v":460.74},null," t x km"]

{"sheet":"Mob e Desmob JAZ. asfalto","index":8,"n_rows":25,"n_cols":9,"rows_kept":25,"cut":false,"hidden":false,"merged":[[24,5,24,6],[0,2,0,15],[1,2,1,15],[2,2,2,15],[4,0,4,15],[6,0,7,15],[9,2,9,9],[11,2,11,9]]}
[null,null,"MINISTÉRIO DO DESENVOLVIMENTO REGIONAL - MDR"]
[null,null,"COMPANHIA DE DESENVOLVIMENTO DOS VALES DO SÃO FRANCISCO E DO PARNAÍBA"]
[null,null,"2ª SUPERINTENDÊNCIA REGIONAL - BOM JESUS DA LAPA-BA"]
[]
["OBJETO: CONTRATAÇÃO DE OBRAS E SERVIÇOS DE ENGENHARIA PARA REGULARIZAÇÃO DE SUBLEITO E EXECUÇÃO DE REVESTIMENTO PRIMÁRIO NA ESTRADA DA IPUEIRA, MUNICÍPIO DE SERRA DO RAMALHO, NA ÁREA DE ABRANGÊNCIA DA 2ª SUPERINTENDÊNCIA REGIONAL DA CODEVASF, NO ESTADO DA BAHIA."]
[]
["ANEXO 4 - MEMÓRIA DE CÁLCULO DOS MOMENTOS DE TRANSPORTE PARA MOBILIZAÇÃO E DESMOBILIZAÇÃO"]
[]
[]
["Cidade de Origem:",null,"Bom Jesus da Lapa-BA."]
[]
["Destino:",null,"Cascalheira do Morrão - Bom Jesus da Lapa-BA (13º11'46,3\" Sul e 43º12'47,5\" Oeste)."]
[]
["Distância Total considerada:",null,20," km de via asfaltada"]
[]
["Peso das máquinas:",null,null,null,"Escavadeira hidráulica 118 kw",null,null,22.2,"ton"]
[]
[]
[]
["Peso dos materiais:",null,null,null,"Materiais",null,null,2,"ton"]
[]
[{"$nulls":4},"Total",null,null,{"$f":"SUM(H16:H20)","v":24.2}," ton"]
[]
[]
[{"$f":"\"Momento de transporte  =  \"&TEXT(H22,\"0,00\")&\"  x  \"&TEXT(C14,\"0,00\")&\"            =>\"","v":"Momento de transporte  =  24,20  x  20,00            =>"},{"$nulls":4},{"$f":"TRUNC(C14*H22,4)","v":484},null," t x km"]

{"sheet":"Mob e Desmob JAZ. cascalho","index":9,"n_rows":25,"n_cols":9,"rows_kept":25,"cut":false,"hidden":false,"merged":[[24,5,24,6],[0,2,0,15],[1,2,1,15],[2,2,2,15],[4,0,4,15],[6,0,7,15],[9,2,9,10],[11,2,11,10]]}
[null,null,"MINISTÉRIO DO DESENVOLVIMENTO REGIONAL - MDR"]
[null,null,"COMPANHIA DE DESENVOLVIMENTO DOS VALES DO SÃO FRANCISCO E DO PARNAÍBA"]
[null,null,"2ª SUPERINTENDÊNCIA REGIONAL - BOM JESUS DA LAPA-BA"]
[]
["OBJETO: CONTRATAÇÃO DE OBRAS E SERVIÇOS DE ENGENHARIA PARA REGULARIZAÇÃO DE SUBLEITO E EXECUÇÃO DE REVESTIMENTO PRIMÁRIO NA ESTRADA DA IPUEIRA, MUNICÍPIO DE SERRA DO RAMALHO, NA ÁREA DE ABRANGÊNCIA DA 2ª SUPERINTENDÊNCIA REGIONAL DA CODEVASF, NO ESTADO DA BAHIA."]
[]
["ANEXO 4 - MEMÓRIA DE CÁLCULO DOS MOMENTOS DE TRANSPORTE PARA MOBILIZAÇÃO E DESMOBILIZAÇÃO"]
[]
[]
["Cidade de Origem:",null,"Bom Jesus da Lapa-BA"]
[]
["Destino:",null,"Cascalheira do Morrão - Bom Jesus da Lapa-BA (13º11'46,3\" Sul e 43º12'47,5\" Oeste)."]
[]
["Distância Total considerada:",null,15," km de via em revestimento primário"]
[]
["Peso das máquinas:",null,null,null,"Escavadeira hidráulica 118 kw",null,null,22.2,"ton"]
[]
[]
[]
["Peso dos materiais:",null,null,null,"Materiais",null,null,2,"ton"]
[]
[{"$nulls":4},"Total",null,null,{"$f":"SUM(H16:H20)","v":24.2}," ton"]
[]
[]
[{"$f":"\"Momento de transporte  =  \"&TEXT(H22,\"0,00\")&\"  x  \"&TEXT(C14,\"0,00\")&\"            =>\"","v":"Momento de transporte  =  24,20  x  15,00            =>"},{"$nulls":4},{"$f":"TRUNC(C14*H22,4)","v":363},null," t x km"]

{"sheet":"CROQUI JAZIDA","index":10,"n_rows":7,"n_cols":3,"rows_kept":7,"cut":false,"hidden":false,"merged":[[0,2,0,15],[1,2,1,15],[2,2,2,15],[4,0,4,15],[6,0,7,15]]}
[null,null,"MINISTÉRIO DO DESENVOLVIMENTO REGIONAL - MDR"]
[null,null,"COMPANHIA DE DESENVOLVIMENTO DOS VALES DO SÃO FRANCISCO E DO PARNAÍBA"]
[null,null,"2ª SUPERINTENDÊNCIA REGIONAL - BOM JESUS DA LAPA-BA"]
[]
["OBJETO: CONTRATAÇÃO DE OBRAS E SERVIÇOS DE ENGENHARIA PARA REGULARIZAÇÃO DE SUBLEITO E EXECUÇÃO DE REVESTIMENTO PRIMÁRIO NA ESTRADA DA IPUEIRA, MUNICÍPIO DE SERRA DO RAMALHO, NA ÁREA DE ABRANGÊNCIA DA 2ª SUPERINTENDÊNCIA REGIONAL DA CODEVASF, NO ESTADO DA BAHIA."]
[]
["ANEXO 4 - TRAJETO PARA TRANSPORTE DE MATERIAL DA JAZIDA AO LOCAL DA OBRA"]

{"sheet":"DET. ENCARGOS","index":11,"n_rows":45,"n_cols":4,"rows_kept":45,"cut":false,"hidden":false,"merged":[[39,0,39,1],[40,1,40,3],[43,0,43,1],[44,0,44,1],[0,3,2,3],[8,0,9,1],[10,1,10,3],[20,0,20,1],[21,1,21,3],[32,0,32,1],[33,1,33,3],[0,0,0,2],[1,0,1,2],[2,0,2,2],[4,0,4,3],[6,0,6,3]]}
["MINISTÉRIO DA INTEGRAÇÃO E DO DESENVOLVIMENTO REGIONAL - MIDR"]
["COMPANHIA DE DESENVOLVIMENTO DOS VALES DO SÃO FRANCISCO E DO PARNAÍBA"]
["2ª SUPERINTENDÊNCIA REGIONAL - BOM JESUS DA LAPA/BA."]
[]
["OBJETO: CONTRATAÇÃO DE OBRAS E SERVIÇOS DE ENGENHARIA PARA REGULARIZAÇÃO DE SUBLEITO E EXECUÇÃO DE REVESTIMENTO PRIMÁRIO NA ESTRADA DA IPUEIRA, MUNICÍPIO DE SERRA DO RAMALHO, NA ÁREA DE ABRANGÊNCIA DA 2ª SUPERINTENDÊNCIA REGIONAL DA CODEVASF, NO ESTADO DA BAHIA."]
[]
["ANEXO 4 - DETALHAMENTO DE ENCARGOS SOCIAIS - HORISTAS E MENSALISTAS 2025 BAHIA (SEM DESONERAÇÃO)"]
[]
["DISCRIMINAÇÃO",null,"HORISTA","MENSALISTA"]
[null,null,"%","%"]
["A","ENCARGOS SOCIAIS BÁSICOS"]
["A1","INSS",20,20]
["A2","SESI",1.5,1.5]
["A3","SENAI",1,1]
["A4","INCRA",0.2,0.2]
["A5","SEBRAE",0.6,0.6]
["A6","Salário Educação",2.5,2.5]
["A7","Seguro Contra Acidente de Trabalho",3,3]
["A8","FGTS",8,8]
["A9","SECONCI",0,0]
["SUBTOTAL DE “A”:",null,{"$f":"SUM(C12:C20)","v":36.799999999999997},{"$f":"SUM(D12:D20)","v":36.799999999999997}]
["B","ENCARGOS SOCIAIS QUE RECEBEM INCIDÊNCIA DE “A”"]
["B1","Repouso Semanal Remunerado",17.98,"Não incide"]
["B2","Feriados",3.97,"Não incide"]
["B3","Auxílio-Enfermidade",0.86,0.65]
["B4","13º Salário",11.07,8.33]
["B5","Licença Paternidade",7.0000000000000007E-2,0.05]
["B6","Faltas Justificadas",0.74,0.56000000000000005]
["B7","Dias de Chuva",2.14,"Não incide"]
["B8","Auxílio Acidente de Trabalho",0.1,7.0000000000000007E-2]
["B9","Férias Gozadas",11.92,8.9700000000000006]
["B10","Salário Maternidade",0.03,0.03]
["SUBTOTAL DE “B”:",null,{"$f":"SUM(C23:C32)","v":48.88},{"$f":"SUM(D25,D26,D27,D28,D30,D31,D32)","v":18.660000000000004}]
["C","ENCARGOS SOCIAIS QUE NÃO RECEBEM INCIDÊNCIA DE “A”"]
["C1","Aviso Prévio Indenizado",5.49,4.13]
["C2","Aviso Prévio Trabalhado",0.13,0.1]
["C3","Férias Indenizadas",2.36,1.77]
["C4","Depósito Rescisão Sem Justa Causa",2.97,2.2400000000000002]
["C5","Indenização Adicional",0.46,0.35]
["SUBTOTAL DE “C”:",null,{"$f":"SUM(C35:C39)","v":11.410000000000002},{"$f":"SUM(D35:D39)","v":8.59}]
["D","REINCIDÊNCIAS DE UM GRUPO SOBRE O OUTRO"]
["D1","Reincidência de “A” sobre “B”",17.989999999999998,6.87]
["D2","Reincidência de Grupo A sobre Aviso Prévio Trabalhado e Reincidência do FGTS sobre Aviso Prévio Indenizado",0.49,0.37]
["SUBTOTAL DE “D”:",null,{"$f":"SUM(C42:C43)","v":18.479999999999997},{"$f":"SUM(D42:D43)","v":7.24}]
["TOTAIS DE ENCARGOS SOCIAIS (%):",null,{"$f":"SUM(C21,C33,C40,C44)","v":115.57},{"$f":"SUM(D21,D33,D40,D44)","v":71.289999999999992}]

{"sheet":"BDI","index":12,"n_rows":36,"n_cols":16,"rows_kept":36,"cut":false,"hidden":false,"merged":[[1,1,1,8],[2,1,2,8],[4,2,4,8],[5,1,5,8],[3,1,3,8],[11,13,11,14],[12,6,12,7],[12,13,12,14],[6,12,6,15],[7,1,7,3],[9,6,9,7],[9,13,9,14],[10,1,10,3],[7,12,8,15],[8,2,9,2],[13,13,13,14],[14,6,14,7],[14,13,14,14],[15,6,15,7],[15,13,15,14],[19,13,19,14],[20,1,20,2],[20,6,20,7],[20,13,20,14],[16,1,16,2],[16,6,16,7],[16,13,16,14],[17,1,17,3],[18,2,18,3],[18,6,18,7],[18,13,18,14],[19,6,19,7],[25,2,26,2],[8,3,9,3],[25,3,26,3],[21,1,21,3],[22,2,22,3],[35,3,36,3],[32,1,33,3],[35,1,36,2],[23,6,24,7],[7,5,8,8],[13,6,13,7],[11,2,11,3],[11,6,11,7],[22,5,22,8],[26,6,26,7],[28,1,28,2],[23,5,24,5],[23,8,24,8],[29,1,29,3],[8,1,9,1],[25,1,26,1]]}
[]
[null,"ANEXO 4 - PLANILHA DE DETALHAMENTO DO BDI"]
[]
[null,"OBJETO: CONTRATAÇÃO DE OBRAS E SERVIÇOS DE ENGENHARIA PARA REGULARIZAÇÃO DE SUBLEITO E EXECUÇÃO DE REVESTIMENTO PRIMÁRIO NA ESTRADA DA IPUEIRA, MUNICÍPIO DE SERRA DO RAMALHO, NA ÁREA DE ABRANGÊNCIA DA 2ª SUPERINTENDÊNCIA REGIONAL DA CODEVASF, NO ESTADO DA BAHIA."]
[]
[null,"MEMÓRIA DE CALCULO DO BDI  DOS SERVIÇOS - NÃO DESONERADO"]
[{"$nulls":12},"Obras rodoviárias"]
[null,"BDI APLICADO NA OBRA (SEM RISCO, SEGURO E GARANTIA)",null,null,null,"FAIXAS DE ADMISSIBILIDADE DE ACORDO COM O ACORDÃO N. 2622/2013 DO TCU",{"$nulls":6},"FAIXAS DE ADMISSIBILIDADE DE ACORDO COM O ACORDÃO N. 2622/2013 DO TCU"]
[null,"ITEM","DISCRIMINAÇÃO ","PERC.   (%)"]
[{"$nulls":5},"MÍNIMO","MÉDIO",null,"MÁXIMO",null,null,null,"MÍNIMO","MÉDIO",null,"MÁXIMO"]
[]
[null,"1.00"," Despesas Indiretas"]
[null,"A1","Seguro e Garantia",{"$f":"G13","v":4.0000000000000001E-3},null,3.2000000000000002E-3,4.0000000000000001E-3,null,7.4000000000000003E-3,null,null,null,3.2000000000000002E-3,4.0000000000000001E-3,null,7.4000000000000003E-3]
[null,"A2","Riscos e Imprevistos",{"$f":"G14","v":5.5999999999999999E-3},null,5.0000000000000001E-3,5.5999999999999999E-3,null,9.7000000000000003E-3,null,null,null,5.0000000000000001E-3,5.5999999999999999E-3,null,9.7000000000000003E-3]
[null,"A3","Despesas Financeiras",1.11E-2,null,1.0200000000000001E-2,1.11E-2,null,1.21E-2,null,null,null,1.0200000000000001E-2,1.11E-2,null,1.21E-2]
[null,"A4","Administração Central",4.0099999999999997E-2,null,3.7999999999999999E-2,4.0099999999999997E-2,null,4.6699999999999998E-2,null,null,null,3.7999999999999999E-2,4.0099999999999997E-2,null,4.6699999999999998E-2]
[null,"Total do Grupo A =",null,{"$f":"SUM(D13:D16)","v":6.08E-2}]
[]
[null,"2.00","Benefício"]
[null,"B-1","LUCRO",6.8599999999999994E-2,null,6.6400000000000001E-2,7.2999999999999995E-2,null,8.6900000000000005E-2,null,null,null,6.6400000000000001E-2,7.2999999999999995E-2,null,8.6900000000000005E-2]
[null,"Total do Grupo B =",null,{"$f":"SUM(D20)","v":6.8599999999999994E-2}]
[]
[null,"3.00","Impostos",null,null,"CÁLCULO DO ISS"]
[null,"C-1","PIS / PASEP",6.4999999999999997E-3,null,"ALÍQUOTA MUNICIPAL (%)","% DE MÃO DE OBRA",null,"ALÍQUOTA FINAL (%)"]
[null,"C-2","COFINS",0.03]
[null,"C-3","ISS",{"$f":"I27","v":0.03}]
[{"$nulls":5},0.05,0.6,null,{"$f":"G27*F27","v":0.03}]
[null,"C-4","CPRB (Contribuição Previdenciária sobre o Lucro Bruto)",0]
[null,"Total do Grupo C =",null,{"$f":"SUM(D24:D28)","v":6.6500000000000004E-2}]
[]
[null,null,"Fórmula Para Cálculo do B.D.I"]
[]
[null,"BDI =(((1+A4+A1+A2)*(1+A3)*(1+B1))/(1-C))-1"]
[]
[]
[null,"Bonificação Sobre Despesas indiretas (B.D.I) =",null,{"$f":"(((1+D16+D13+D14)*(1+D15)*(1+D21))/(1-D29))-1","v":0.21495489508516363}]